{"text_format":"1","workbook":"xlsx","n_sheets":21,"sheets":["Cover Page","Contents","Facility Info","Operational Data","Operational Summary","Perf. Form 1","Energy Form 1","Permit Compliance","Improvements","Public Liasion","Residue Quality ","Water","Air (periodic)","Air (CEMS)","HCl","SO2","NOx","TOC","Particulates","CO 95% 10 min","NH3"],"not_rendered":{"charts":7,"images":2,"macros":1,"external_links":0,"defined_names":21,"comments":0,"pivot_tables":0},"unopened":[],"bounds":{"document_bytes":16777216,"sheet_cells":100000,"rows_first":2000,"rows_last":500,"rows_between":2000,"halvings":0,"cell_chars":16384,"cell_head_chars":4096},"cells_cut":0,"cells_raw":0,"read":"whole","date_system":"1900"}

{"sheet":"Cover Page","index":0,"n_rows":53,"n_cols":14,"rows_kept":53,"cut":false,"hidden":false,"merged":[[13,13,18,15],[34,1,34,8],[0,3,5,6],[7,1,23,8],[28,1,28,8],[30,1,30,8],[32,1,32,8],[48,2,48,3],[48,6,48,8],[52,2,52,3],[36,1,36,8],[40,2,40,8],[42,2,42,4],[44,2,44,4],[46,2,46,3],[46,6,46,8]]}
[null,null,null,"Add company logo"]
[null,null,null,null,null,null,null,null,null,null,null,null,null,"Version 20.6 "]
[]
[]
[]
[]
[]
[null,"Add photo"]
[]
[]
[]
[]
[null,null,null,null,null,null,null,null,null,null,null,null,null,"Notes:"]
[null,null,null,null,null,null,null,null,null,null,null,null,null,"This template may require adjustments by individual operators to meet specific reporting requirements as defined in the site Permit(s)"]
[]
[]
[]
[]
[]
[]
[]
[]
[]
[]
[]
[]
[]
[]
[null,"Annual Performance Report 2020"]
[]
[null,"Permit EPR/ZP3937KL"]
[]
[null,"Severnside Energy Recovery Centre"]
[]
[]
[]
[null,"SUEZ Recycling and Recovery UK Ltd"]
[]
[null,"Year:",2020]
[]
[null,"Address:","Severn Road, Severnside, South Gloucestershire, BS10 7SP "]
[]
[null,"Tel: ","07970 233762"]
[]
[null,"Email: ","richard.watkins@suez.com"]
[]
[null,"Prepared by:","Richard Watkins",null,null,"Position:","EIR Advisor"]
[]
[null,"Approved by:","Stephen Fisher",null,null,"Position:","Plant Manager"]
[]
[null,"Version:",1]
[]
[null,"Issue Date:","2021-01-27"]

{"sheet":"Contents","index":1,"n_rows":44,"n_cols":11,"rows_kept":44,"cut":false,"hidden":false,"merged":[[4,10,7,14],[8,1,8,6],[3,1,3,6],[4,1,4,6],[5,1,5,6],[6,1,6,6],[7,1,7,6],[20,1,20,6],[9,1,9,6],[10,1,10,6],[11,1,11,6],[12,1,12,6],[13,1,13,6],[14,1,14,6],[15,1,15,6],[16,1,16,6],[17,1,17,6],[18,1,18,6],[19,1,19,6],[35,1,35,6],[21,1,21,6],[22,1,22,6],[23,1,23,6],[26,1,26,6],[27,1,27,6],[28,1,28,6],[29,1,29,6],[30,1,30,6],[31,1,31,6],[34,1,34,6],[43,0,46,9],[36,1,36,6],[37,1,37,6],[38,1,38,6],[39,1,39,6],[40,1,40,6],[41,1,41,6]]}
[{"$f":"+'Cover Page'!$B$29","v":"Annual Performance Report 2020"},null,null,null,{"$f":"+'Cover Page'!$B$33","v":"Severnside Energy Recovery Centre"}]
[]
["Contents",null,null,null,null,null,null,null,null,null,"Notes:"]
["Section","Subject",null,null,null,null,null,"Page ",null,null,"Section references and Page nos. to be inserted"]
[null,"Facility Information",null,null,null,null,null,null,null,null,"Sections and Subjects may require adjustment by individual operators to meet specific reporting requirements as defined in the sites Permit(s)"]
[null,"Operational Summary"]
[null,"Operational Data"]
[null,"Performance Form 1"]
[null,"Energy Form 1"]
[null,"Permit Compliance"]
[null,"Improvements"]
[null,"Public Liaison"]
[null,"Residue Quality - Optional"]
[null,"Emissions to Water"]
[null,"Emissions to Air (periodically monitored)"]
[null,"Emissions to Air (continuously monitored)"]
[null,"Hydrogen Chloride emissions"]
[null,"Sulphur Dioxide emissions"]
[null,"Oxides of Nitrogen emissions"]
[null,"Total Organic Carbon emissions"]
[null,"Particulate Matter emissions"]
[null,"Carbon Monoxide emissions"]
[null,"Ammonia emissions"]
[]
[]
["Version Control"]
["Section","Information",null,null,null,null,null,"Date"]
[]
[]
[]
[]
[]
[]
["Distribution"]
["Copy","Name, Role",null,null,null,null,null,"No."]
[1,"SUEZ Environment & Industrial Risk Team"]
[2,"SUEZ Site Management Team"]
[3,"Environment Agency"]
[]
[]
[]
[]
[]
["This report is required under the Industrial Emissions Directive’s Article 55(2) requirements on reporting and public information on waste incineration plants and co-incineration plants, which require the operator to produce an annual report on the functioning and monitoring of the plant and make it available to the public. "]

{"sheet":"Facility Info","index":2,"n_rows":22,"n_cols":11,"rows_kept":22,"cut":false,"hidden":false,"merged":[[4,0,17,8],[21,0,53,8],[4,10,13,13],[21,10,30,13]]}
[{"$f":"+'Cover Page'!$B$29","v":"Annual Performance Report 2020"},null,null,null,{"$f":"+'Cover Page'!$B$33","v":"Severnside Energy Recovery Centre"}]
[]
["Plant Description and Design",null,null,null,null,null,null,null,null,null,"Notes:"]
[]
["The installation is an Energy from Waste (EfW) plant which processes up to 467,082 tonnes of residual (non-recyclable) Commercial and Industrial and Municipal waste per annum, leading to a net export of approximately 37 MW of electrical energy to the National Grid. The facility comprises two identical moving grate incinerator combustion lines with a combined capacity of approximately 50 tonne/hr of waste of an approximate 9.8MJ/kg calorific value. The waste is delivered to the site by road, and rail by a dedicated onsite railhead served by two gantry cranes. The plant has two auxiliary burners to support start-up and shutdown on each incineration line, and a stand-by diesel generator to support emergency shutdown in the event of power failure.\n\nThe incinerator bottom ash (IBA) waste on the site is quenched to control dust fugitive emissions and transferred by covered conveyors to the onsite bottom ash recycling plant. The bottom ash recycling plant uses magnets, eddy current separators and a trommel to recover ferrous metals and non-ferrous metals from the bottom ash.\n\nHazardous air pollution control residues (APCR) from the flue gas treatment plant is collected and removed offsite for treatment. The treatment process involves the removal of contaminants and reuse of the fine ash material as an aggregate replacement in manufactured cement blocks.\n\nSNCR (ammonia) is used to reduce emissions of oxides of nitrogen, lime to reduce acid gas emissions and carbon injection for reduction of organics including dioxins and PAH emissions. Bag filters within the flue gas treatment plant remove dust (particulates) from the emissions to air. The treated emissions to air are released through two 118 metre stacks comprising two flues that run the full length of the stack (one for each incineration line). A continuous emissions monitoring system (CEMS) is installed, as required by the permit, to provide continuous analysis of oxides of nitrogen, sulphur dioxide, carbon monoxide, hydrogen chloride, particulates, total organic carbon and ammonia emissions to air from the two stacks. \n\nThe main emissions to air from the site are the combustion gases (oxides of nitrogen, sulphur dioxide and particulates), along with small quantities of ammonia, nitrous oxide, hydrogen chloride, metals, dioxins and furans, and polyaromatic hydrocarbons. There are no emissions from the process to controlled waters. Water discharge of uncontaminated surface (rain)water is permitted.\n\nThe Severn Estuary SAC, SSSI, SPA and RAMSAR sites are within 10km of the site, along with the River Wye and Avon Gorge Woodlands.",null,null,null,null,null,null,null,null,null,"Include summary of plant design, design capacity, no. of combustion lines, electrical and heat capacity and any other general information that descibes the facility, its location and purpose "]
[]
[]
[]
[]
[]
[]
[]
[]
[]
[]
[]
[]
[]
[]
["Summary of Operational Processes and Procedures"]
[]
["Activity listed in Schedule1 of the EP Regulations\nS5.1 A1 (b) The incineration of nonhazardous waste in a waste incineration plant with a capacity of 3 tonnes per hour or more.\nFrom receipt of commercial, industrial and municipal waste by road and/or rail to storage of gas oil auxiliary fuel, to incineration of waste and removal of ash. The receipt, handling, storage, processing and treatment of incinerator bottom ash only from within the installation.\n\nDirectly Associated Activities\nThe generation of up to 40 MWe electrical power, with approximately 37 MWe for export to the National Grid, using a steam turbine from energy recovered from the flue gases. From receipt of commercial, industrial and municipal waste by road and/or rail to storage of gas oil auxiliary fuel, to incineration of\nwaste and removal of ash. The receipt, handling, storage, processing and treatment of incinerator bottom ash only from within the installation.\n\nStandby diesel generator for providing emergency electrical power to the plant in the event of supply\ninterruption. From receipt of diesel fuel to production of electricity for controlled shutdown of incinerator in the event of power failure at the site.\n\nRailhead; operation of designated railhead for the receipt of waste for thermal treatment and the potential dispatch by rail of recycled bottom ash as a secondary aggregate. From receipt of waste to the potential loading of processed IBA, limited within the site boundary.\n\nPlant Description\nIncoming contract waste is delivered to site by rail with each train carrying approximately 1,000 tonnes of waste in 78 containers. Each container is transferred by gantry crane to roll on/off vehicles and taken to the Tipping Hall for unloading into the waste bunker. Third party waste is received by road, checked in, weighed and delivered into the reception hall by ro/ro’s, refuse collection vehicles and bulk transport vehicles.\n\nRECEPTION HALL\nA large reception hall allows for vehicles delivering waste to the site to manoeuvre and tip waste safely. The tipping hall is constructed above ground level as part of the sites flood protection strategy. HGV access to and egress from the Tipping Hall is via ramps on the south and north sides of the building. Air needed for combustion is drawn into the furnace from here (above the waste bunker) so that negative pressure is maintained in order to avoid odour and dust escaping the building. The tipping hall also includes an automatic dust and odour suppression system.\n\nWASTE BUNKER\nWaste vehicles reverse to a wheel stop and tip their loads into a large concrete bunker. The waste cranes operate over the waste bunker automatically to mix the waste to improve the homogeneity of the incinerator feedstock and feed the waste hoppers for each incineration line. Manual control by crane operators is carried out as and when required. Inspection of wastes received is carried out by the Day Operations team to look for unsuitable material and non-permitted wastes to be removed.\n\nCONTROL ROOM\nThe plant’s control room contains the Distributed Control System (DCS) which centralises the operation of the plant, and all equipment, including the grab cranes used to mix and load waste into the hoppers that feed the incineration lines. All on-site functions are monitored automatically and manually. Its systems verify in real time that equipment is functioning properly, continuously monitor the combustion processes, flue gases, and maximise the efficiency of the entire EfW process.\n\nGRATE AND BOILER\nWaste is lifted into the feed hoppers by the waste cranes. From here it is dropped into the furnace feed chute and then is introduced onto the grate system by hydraulic ram feeders for incineration. Auxiliary burners are used at start up and shut down, and can be used to help keep the furnace temperature above 850°C if required. The plant has two auxiliary burners per incineration line. The thermal energy released from the incineration of waste is used to convert water to super-heated steam through the boiler and 5 pass superheater. At high pressure, this steam drives a turbine to generate electricity.\n\nELECTRICITY GENERATION\nThe turbine drives a step down gearbox, which in turn drives a generator. Electricity is generated at 11kv, with electricity production of 304,000 MWh/annum (based on 38MW and 8,000 operating hours) and exporting approximately 273,600 MWh/annum to the national grid.\n\nINCINERATOR BOTTOM ASH (IBA)\nAsh left on the grate after incineration falls through the grate riddlings or off the end of the grate, is combined with boiler ash produced in the superheater and passes into the bottom ash extractor. The bottom ash extractor contains water to quench the ash and to provide an air seal for the furnace. The material is removed from the bottom ash extractor by a drag conveyor passing the material onto the vibrating fingers for removal of the oversize metal content. The oversize metal drops into a skip for collection and the remaining IBA material is dropped onto a conveyor for transport to the on site IBA recycling plant. Up to 100,000 tonnes per annum of IBA is produced and then processed on site by the removal of ferrous and non-ferrous metal, stabilised and separated into fraction sizes prior to the export from site of the recovered aggregates and metals for re-use.\n\nAIR-COOLED CONDENSERS\nAfter exiting the turbine, the steam is cooled and condensed back into water through air cooled condensers. This recovered water is collected in the condensate tank, treated and returned to the feedwater system to supply the boiler drum and to produce more steam, thus reducing consumption of mains water.\n\nEMISSION CONTROL\nThe flue gases from the incineration of waste are subject to a rigorous cleaning process involving ammonia for removal of Nitrogen Oxides (NOx) by selective non-catalytic reduction (SNCR). A DyNor (Dynamic NOx Reduction system) is used to optimise NOx reduction and reduce ammonia slip by altering the ammonia injection point into the furnace, dependent on the temperature profile, so the injection takes place where the SNCR reaction will be most effective. Lime and powdered activated carbon is injected into the reactor where the lime removes acidic gases such as sulphur dioxide (SO2) and hydrogen chloride (HCL), and the activated carbon removes heavy metals, dioxins and furans.\n\n \nAIR POLLUTION CONTROL RESIDUE (APCR)\nThe cleaned flue gases pass from the reactor through fine-fabric bag filters to remove solid particulates (dust). The bag filters become coated with lime and carbon and provides a further reaction surface increasing the effectiveness of the carbon and lime. When the pressure differential between the inside of the fabric filters becomes too great, a jet of compressed air is used to remove some of the reagents and ash caking the outside of the bag filters. Some of this material is recirculated back into the reactor where atomised water jets reactive the reagents for further use in the reactor.\nThe remaining APCR collected from the bag filter housing contains ash particles from the incineration process, spent lime used in the flue gas treatment, salts and carbon dust. It is transported to and stored in two sealed silo’s until it is tankered away for recovery.\n\nCONTINUOUS EMISSIONS MONITORING SYSTEM (CEMS)\nThe flue gases are drawn through the flue gas treatment system by large induction fans which then vent and discharge the treated flue gases to atmosphere via the stacks. A continuous emissions monitoring system is installed on each stack to monitor these emissions. The data is used to make any necessary adjustment to reagent dosing to ensure compliance with permit Emission Limit Values (ELV’s). This data is relayed automatically to the control room and is under close observation by the Operations Team. The CEMS is subject to QAL3 calibration tests (zero and span checks) performed monthly by the maintenance team, and an external contractor carries out annual servicing, calibration and emission testing as required by the permit.",null,null,null,null,null,null,null,null,null,"Include summary of key processes and procedures such as (but not limited to); waste reception, control rooms, grate, bed and bolier, energy & heat  generation, cooling systems, residue management, emission controls, health and safety systems, maintenance"]

{"sheet":"Operational Data","index":3,"n_rows":65,"n_cols":11,"rows_kept":65,"cut":false,"hidden":false,"merged":[[3,1,3,2],[7,1,19,1],[23,1,26,1],[28,1,29,1],[52,0,56,0],[5,10,6,10],[7,10,18,10],[33,1,38,1],[30,2,30,5],[30,6,30,7]]}
[{"$f":"+'Cover Page'!$B$29","v":"Annual Performance Report 2020"},null,null,null,{"$f":"+'Cover Page'!$B$33","v":"Severnside Energy Recovery Centre"}]
[]
["Operational Data",null,null,null,null,null,null,null,null,null,"Notes:"]
["Plant Size",467000,null,"tonnes pa",131,"MWth",36,"MWe",null,null,"* - RDF to include SRF "]
["No. of combustion lines",2,null,"No. of Turbines:",null,1,null,null,null,null,"** - CHP plants only"]
[null,null,null,null,null,null,null,null,null,null,"2020 updates include;  heat in MWh, water in Litres, NCV in MJ/kg"]
["Waste types received","Unit","Q1","Q2","Q3","Q4","Year Total","%"]
["Household / Local Authority","tonnes",75408,75618,79559,80897,{"$f":"SUM(C8:F8)","v":311482},{"$f":"IF(G8>0,G8/$G$18,\"-\")","v":0.74687684332183979},null,null,"Availabiity Definition: 'the availability of a line is to be calculated by the number of hours the line reported Continuously Monitored emission levels to the Regulator through the calendar year divided by the total number of hours in that year. \nThe overall plant availability is calculated as the Mean of all lines in the plant. For clarity this includes periods of Other Than Normal Operating Conditions (OTNOC) and abnormal operation.'  \n\nRationale: The primary function of an Energy from Waste facility is the disposal of waste. It follows therefore that the availability of a plant is determined by the period of time a facility spends undertaking this activity."]
["Commercial & Industrial ",null,21122,27311,25496,31635,{"$f":"SUM(C9:F9)","v":105564},0.25312315667816021]
["Hazardous ",null,null,null,null,null,0,"-"]
["Clinical",null,null,null,null,null,0,"-"]
["Waste wood (biomass) ",null,null,null,null,null,0,"-"]
["Refuse Derived Fuel * - H'hold/LA",null,null,null,null,null,{"$f":"SUM(C13:F13)","v":0},"-"]
["Refuse Derived Fuel *  - C&I",null,null,null,null,null,0,"-"]
["Other [Please specify]",null,null,null,null,null,0,"-"]
["Other [Please specify]"]
["Other [Please specify]"]
["Total waste received",null,{"$f":"SUM(C8:C17)","v":96530},{"$f":"SUM(D8:D17)","v":102929},{"$f":"SUM(E8:E17)","v":105055},{"$f":"SUM(F8:F17)","v":112532},{"$f":"SUM(G8:G17)","v":417046},1]
["Rejected Waste ",null,null,null,null,null,{"$f":"SUM(C19:F19)","v":0},{"$f":"IF(G19>0,G19/$G$18,\"-\")","v":"-"}]
["Unprocessed waste transferred out",null,null,null,422,6,{"$f":"SUM(C20:F20)","v":428},{"$f":"IF(G20>0,G20/$G$18,\"-\")","v":1.0262656877179017E-3}]
["Total waste combusted",null,92530,96926,104049,117531,{"$f":"SUM(C21:F21)","v":411036},{"$f":"IF(G21>0,G21/($G$18-G20),\"-\")","v":0.98660163507097631}]
[]
["Energy Useage / Export","Unit","Q1","Q2","Q3","Q4","Year Total","KWh/te"]
["Power Generated","MWh",71404,73885,79647,82940,{"$f":"SUM(C24:F24)","v":307876},{"$f":"IF(G24>0,G24*1000/$G$21,\"-\")","v":749.0244163528256}]
["Power Exported",null,65172,66929,72879,75979,{"$f":"SUM(C25:F25)","v":280959},{"$f":"IF(G25>0,G25*1000/$G$21,\"-\")","v":683.53866814585581}]
["Power Used on site",null,{"$f":"(C24-C25)+C27","v":6322},{"$f":"(D24-D25)+D27","v":6999},{"$f":"(E24-E25)+E27","v":6770},{"$f":"(F24-F25)+F27","v":6989},{"$f":"SUM(C26:F26)","v":27080},{"$f":"IF(G26>0,G26*1000/$G$21,\"-\")","v":65.882307145846113}]
["Power Imported",null,90,43,2,28,163,{"$f":"IF(G27>0,G27*1000/$G$21,\"-\")","v":0.39655893887640015}]
["Parasitic Load","%",{"$f":"IF(C24>0,1-C25/(C24+C27),\"-\")","v":8.8427000867205674E-2},{"$f":"IF(D24>0,1-D25/(D24+D27),\"-\")","v":9.4673195541608024E-2},{"$f":"IF(E24>0,1-E25/(E24+E27),\"-\")","v":8.4997928410902812E-2},{"$f":"IF(F24>0,1-F25/(F24+F27),\"-\")","v":8.4237296307009935E-2},{"$f":"IF(G24>0,1-G25/(G24+G27),\"-\")","v":8.7910946341209995E-2}]
["Thermal Energy Produced **","MWh",null,null,null,null,{"$f":"SUM(C29:F29)","v":0},{"$f":"IF(G29>0,G29*1000/$G$21,\"-\")","v":"-"}]
["Thermal Energy Exported **",null,null,null,null,null,0,{"$f":"IF(G30>0,G30*1000/$G$21,\"-\")","v":"-"}]
["R1 value",null,0.89,null,null,null,"Operational"]
[]
["Waste Disposal & Recovery","Unit","Q1","Q2","Q3","Q4","Year Total","% inputs"]
["APC Residues - produced","tonnes",2524,2416,2546,2774,{"$f":"SUM(C34:F34)","v":10260},{"$f":"IF(G34>0,G34/$G$21,\"-\")","v":2.4961317256882609E-2}]
["IBA - produced",null,16730.599999999999,11977.8,17821.900000000001,21238,67768.3,{"$f":"IF(G35>0,G35/$G$21,\"-\")","v":0.16487193335863526}]
["Metals recycling",null,2904,3118,3320,3493,{"$f":"SUM(C36:F36)","v":12835},3.1225975340359483E-2]
["Other",null,0,0,0,0,{"$f":"SUM(C37:F37)","v":0},"-"]
["Other",null,0,0,0,0,0,"-"]
["Other",null,0,0,0,0,0,"-"]
[]
["Raw Material Usage","Unit","Q1","Q2","Q3","Q4","Year Total","kg or Ltr /te"]
["Mains Water","ltrs",12176000,13861000,12571000,12852000,{"$f":"SUM(C42:F42)","v":51460000},{"$f":"IF(G42>0,G42/$G$21,\"-\")","v":125.19584659251258}]
["Other Water","ltrs",null,null,null,null,0,{"$f":"IF(G43>0,G43/$G$21,\"-\")","v":"-"}]
["Ammonia","kgs",131900,155180,173660,164901,625641,1.5221075526231278]
["Urea","kgs",null,null,null,null,{"$f":"SUM(C45:F45)","v":0},"-"]
["Activated Carbon","kgs",13445,13894,14758,14869,56966,0.13859126694498777]
["Lime / hydrated lime","kgs",760623,858542,937882,862966,3420013,8.3204707130275697]
["Fuel oil","ltrs",206171,274682,109609,148155,738617,1.7969642561722088]
["Gas","cf",0,0,0,0,0]
["Other",null,0,0,0,0,0]
[]
["Summary ","Line/Unit","Q1","Q2","Q3","Q4","Year Total",null,null,"Hrs in year "]
["Availability of waste combustion by line, hrs",1,1902,2124,1977,2168,{"$f":"SUM(C53:F53)","v":8171},{"$f":"(G53/J53)","v":0.93276255707762556},null,8760]
[null,2,1931,1879,1458,2140,7408,{"$f":"(G54/J53)","v":0.84566210045662105}]
[null,3,null,null,null,null,0,"x %"]
[null,4,null,null,null,null,0,"x %"]
[null,5,null,null,null,null,{"$f":"SUM(C57:F57)","v":0},"x %"]
["Overall Availability, mean avg. of all lines, hrs",null,null,null,null,null,{"$f":"AVERAGE(G53:G54)","v":7789.5},{"$f":"(G58/J53)","v":0.88921232876712331}]
["Hours of turbine operations, hrs",1,2137,2166,2206,2197,8706,{"$f":"(G59/J53)","v":0.99383561643835616}]
["Hours of turbine operations, hrs",2,null,null,null,null,0,"x %"]
["Hours of heat / steam export",null,null,null,null,null,0,{"$f":"IF(B61>0,G60/J53,\"n/a\")","v":"n/a"}]
["Net Calorific Value of waste","MJ/kg",9.4152534974999682,9.4137979161357173,9.3129616063208172,8.5741365548820205,{"$f":"AVERAGE(C62:F62)","v":9.1790373937096312},"-"]
["Abnormal Events","qty.",1,1,1,2,5,{"$f":"IF(G63>0,\"yes\",\"no\")","v":"yes"}]
["Abnormal operation","hours",0.5,0.5,0.5,3,4.5,{"$f":"+(G64)/J53","v":5.1369863013698625E-4}]
["Permit Breaches","qty.",null,null,null,null,0,{"$f":"IF(G65>0,\"yes\",\"no\")","v":"no"}]

{"sheet":"Operational Summary","index":4,"n_rows":31,"n_cols":11,"rows_kept":31,"cut":false,"hidden":false,"merged":[[4,0,26,8],[30,0,51,8],[4,10,13,13],[30,10,39,13]]}
[{"$f":"+'Cover Page'!$B$29","v":"Annual Performance Report 2020"},null,null,null,{"$f":"+'Cover Page'!$B$33","v":"Severnside Energy Recovery Centre"}]
[]
["Summary of Plant Operations and Maintenance during the reporting year",null,null,null,null,null,null,null,null,null,"Notes:"]
[]
["General Overview \nDue to unforeseen Covid-19 circumstances the planned Major Outage due in July 2020 has been moved to 2021. In order to carry out essential maintenance and inspections, each line underwent a Minor Outage to last 9 days in duration per line. Line 2 was carried out at the beginning of June, then with a short break between them, Line 1 commenced in July. \nLine 2 - Stopped waste feeding at midnight Saturday 1 June 2020* and resumed waste feeding on Sunday 7 June 2020 (7 days)\n*Site decision to come off waste Sat Midnight and not the planned Fri Midnight.\nLine 1 - Brought off waste midnight Saturday 4 July 2020 and back on waste feeding on Monday 13 July 2020 (9 days)\nMajor Planned Tasks conducted:\n1.\tRefractory Inspection and essential repairs as required\n2.\tGrate and Ram Feeder inspections and essential repairs as required\n3.\tL1 & L2 ID Fan replacement Motor & Electrical mods\n4.\tL2 Bottom Ash Extractor - replacement chain – HZI\n5.\tGrate Drop off plate’s repairs.\nWe also have a detailed planned maintenance program, we can also share this on request. This is part of our normal maintenance operations. An 18 day major shutdown is scheduled to start on the 1 March 2021, with both lines being off at the same time. The facility has had very good availability in 2020 with the only issue being the bottom ash chains that have now both been replaced. ",null,null,null,null,null,null,null,null,null,"Include summary of key operational and/or mainteanance activity undertaken in the year, such as any major component upgrades and/or replacements "]
[]
[]
[]
[]
[]
[]
[]
[]
[]
[]
[]
[]
[]
[]
[]
[]
[]
[]
[]
[]
[]
[]
[]
["Summary of Residue Handling for the reporting year"]
[]
["The bottom ash chains have been problematic, however both have been changed in 2020. The bag filters have been cleaned on line and have been working well. We have had some filter bags fail and these have been sent off site for quality checks. The bottom ash belts have been changed, this is however normal proactive maintenance. All other aspects of the residue handling have performed well.\nAll IBA produced by the process is treated by the onsite bottom ash recycling plant operated by Blue Phoenix. All APCR produced on site is transported to a treatment facility where the ash is recovered and used to produce cement blocks.",null,null,null,null,null,null,null,null,null,"Include in here a summary of residue handling regimes and destinations "]

{"sheet":"Perf. Form 1","index":5,"n_rows":54,"n_cols":10,"rows_kept":54,"cut":false,"hidden":false,"merged":[[9,0,9,9],[10,0,10,1],[10,2,10,3],[10,4,10,5],[10,6,10,7],[10,8,10,9],[2,0,2,4],[3,1,3,4],[5,3,5,4],[5,6,5,7],[8,0,8,1],[8,2,8,3],[8,4,8,5],[8,6,8,7],[8,8,8,9],[2,6,2,9],[11,0,11,1],[11,2,11,3],[11,4,11,5],[11,6,11,7],[11,8,11,9],[12,0,12,1],[12,2,12,3],[12,4,12,5],[12,6,12,7],[12,8,12,9],[15,0,15,1],[15,2,15,3],[15,4,15,5],[15,6,15,7],[15,8,15,9],[16,0,16,9],[13,0,13,1],[13,2,13,3],[13,4,13,5],[13,6,13,7],[13,8,13,9],[14,0,14,3],[14,4,14,5],[14,6,14,7],[14,8,14,9],[17,0,17,1],[17,2,17,3],[17,4,17,5],[17,6,17,7],[17,8,17,9],[18,0,18,1],[18,2,18,3],[18,4,18,5],[18,6,18,7],[18,8,18,9],[19,0,19,1],[19,2,19,3],[19,4,19,5],[19,6,19,7],[19,8,19,9],[20,0,20,1],[20,2,20,3],[20,4,20,5],[20,6,20,7],[20,8,20,9],[21,0,21,1],[21,2,21,3],[21,4,21,5],[21,6,21,7],[21,8,21,9],[22,0,22,3],[22,4,22,5],[22,6,22,7],[22,8,22,9],[31,0,31,3],[31,7,31,8],[32,0,32,3],[32,4,32,5],[32,7,32,8],[33,0,33,3],[33,4,33,5],[33,7,33,8],[23,0,23,3],[23,4,23,5],[23,6,23,7],[23,8,23,9],[25,0,25,9],[26,0,28,9],[36,0,36,3],[36,4,36,5],[36,7,36,8],[37,0,37,3],[37,4,37,5],[37,7,37,8],[34,0,34,3],[34,4,34,5],[34,7,34,8],[35,0,35,3],[35,4,35,5],[35,7,35,8],[47,0,47,1],[49,0,49,9],[50,0,51,9],[38,0,38,9],[39,0,40,9],[43,0,43,1],[43,2,43,9],[45,0,45,1],[46,0,46,1]]}
[{"$f":"+'Cover Page'!C39","v":2020}," Annual Reporting Performance Form 1"]
[]
[{"$f":"+'Cover Page'!B31","v":"Permit EPR/ZP3937KL"},null,null,null,null,"Operator: ","SUEZ Recycling and Recycling UK Ltd"]
["Facility:",{"$f":"+'Cover Page'!B33:I33","v":"Severnside Energy Recovery Centre"},null,null,null,"Form:","Performance 1"]
[]
["Reporting  Period from: ",null,null,"2020-01-01",null,"to:","2020-12-31"]
[]
[{"$f":"+A1","v":2020},"Annual Reporting of Waste Disposal and Recovery"]
["Waste Description",null,"Disposal Route(s)",null,"Disposal Tonnes",null,"Recovery Tonnes",null,"% / tonne of waste incinerated"]
["1) Hazardous Wastes"]
["APC Residues",null,"D05/R05",null,190.5,null,10094.9,null,{"$f":"IF((E11+G11)>0,(E11+G11)/'Operational Data'!$G$21, \"-\")","v":2.502311233079341E-2}]
["IBA",null,null,null,null,null,null,null,{"$f":"IF((E12+G12)>0,(E12+G12)/'Operational Data'!$G$21, \"-\")","v":"-"}]
[null,null,null,null,null,null,null,null,{"$f":"IF((E13+G13)>0,(E13+G13)/'Operational Data'!$G$21, \"-\")","v":"-"}]
[null,null,null,null,null,null,null,null,{"$f":"IF((E14+G14)>0,(E14+G14)/'Operational Data'!$G$21, \"-\")","v":"-"}]
["Total Hazardous Waste",null,null,null,{"$f":"SUM(E11:F14)","v":190.5},null,{"$f":"SUM(G11:H14)","v":10094.9},null,{"$f":"IF((E15+G15)>0,(E15+G15)/'Operational Data'!$G$21, \"-\")","v":2.502311233079341E-2}]
[]
["2) Non-Hazardous Wastes"]
["IBA",null,"R05",null,null,null,67768.600000000006,null,{"$f":"IF((E18+G18)>0,(E18+G18)/'Operational Data'!$G$21, \"-\")","v":0.16487266322171296}]
["Ferrous Metal",null,"R04",null,null,null,8349.6,null,{"$f":"IF((E19+G19)>0,(E19+G19)/'Operational Data'!$G$21, \"-\")","v":2.0313549178174177E-2}]
["Process Water",null,"D08",null,391.64,null,0,null,{"$f":"IF((E20+G20)>0,(E20+G20)/'Operational Data'!$G$21, \"-\")","v":9.5281191915063399E-4}]
["Non-ferrous Metal",null,"R04",null,null,null,4486.3,null,{"$f":"IF((E21+G21)>0,(E21+G21)/'Operational Data'!$G$21, \"-\")","v":1.0914615751418368E-2}]
["General",null,"R05",null,null,null,4.22,null,{"$f":"IF((E22+G22)>0,(E22+G22)/'Operational Data'!$G$21, \"-\")","v":1.0266740626125205E-5}]
["Total Non-Hazardous Waste",null,null,null,{"$f":"SUM(E18:F22)","v":391.64},null,{"$f":"SUM(G18:H22)","v":80608.720000000016},null,{"$f":"IF((E23+G23)>0,(E23+G23)/'Operational Data'!$G$21, \"-\")","v":0.19706390681108227}]
["TOTAL WASTE",null,null,null,{"$f":"+E23+E15","v":582.14},null,{"$f":"+G23+G15","v":90703.62000000001},null,{"$f":"IF((E24+G24)>0,(E24+G24)/'Operational Data'!$G$21, \"-\")","v":0.22208701914187567}]
[]
["Operator’s comments :"]
[]
[]
[]
[]
[{"$f":"+A1","v":2020},"Annual Reporting of Water and Other Raw Material Usage"]
["Raw Material",null,null,null,"Usage",null,"Unit","Specific Useage",null,"Unit"]
["Mains Water",null,null,null,{"$f":"+'Operational Data'!G42","v":51460000},null,"m3",{"$f":"IF(E33>0,E33/'Operational Data'!$G$21,\"-\")","v":125.19584659251258},null,"m3/te"]
["Total Water",null,null,null,{"$f":"+'Operational Data'!G43+'Operational Data'!G42","v":51460000},null,"m3",{"$f":"IF(E34>0,E34/'Operational Data'!$G$21,\"-\")","v":125.19584659251258},null,"m3/te"]
["Urea / Ammonia",null,null,null,{"$f":"+'Operational Data'!G44","v":625641},null,"kg",{"$f":"IF(E35>0,E35/'Operational Data'!$G$21,\"-\")","v":1.5221075526231278},null,"kg/te"]
["Activated Carbon",null,null,null,{"$f":"+'Operational Data'!G46","v":56966},null,"kg",{"$f":"IF(E36>0,E36/'Operational Data'!$G$21,\"-\")","v":0.13859126694498777},null,"kg/te"]
["Lime / hydrated lime / Sodium Bicarb.",null,null,null,{"$f":"+'Operational Data'!G47","v":3420013},null,"kg",{"$f":"IF(E37>0,E37/'Operational Data'!$G$21,\"-\")","v":8.3204707130275697},null,"kg/te"]
[]
["Operator’s comments :"]
[]
[]
[]
[{"$f":"+A31","v":2020},"Annual Reporting of other performance indicators "]
["Parameter",null,"Results by Line"]
[null,null,"A1","A2","A3","A4","A5",null,"Turbine 1","Turbine 2"]
["Operating hours for the year, hours",null,8171,7408,null,null,null,null,8706]
["Number of periods of abnormal operation, qty.",null,3,3,null,null,null,null,0]
["Cumulative hours of abnormal operation for this year, hours",null,2.5,2.5,null,null,null,null,0]
[]
["Operator’s comments :"]
[]
[]
[]
["Signed: ",null,null,null,null,null,"Date:","2021-01-27"]

{"sheet":"Energy Form 1","index":6,"n_rows":29,"n_cols":8,"rows_kept":29,"cut":false,"hidden":false,"merged":[[2,6,2,9],[4,1,4,4],[6,3,6,4],[6,6,6,7],[8,0,8,2],[8,3,8,4],[8,6,8,8],[9,0,9,2],[9,3,9,4],[9,6,9,8],[10,0,10,2],[10,3,10,4],[10,6,10,8],[11,0,11,2],[11,3,11,4],[11,6,11,8],[12,0,12,2],[12,3,12,4],[12,6,12,8],[13,0,13,2],[13,3,13,4],[13,6,13,8],[14,0,14,2],[14,3,14,4],[14,6,14,8],[15,0,15,2],[15,3,15,4],[15,6,15,8],[17,0,17,8],[18,0,24,8]]}
[{"$f":"+'Cover Page'!C39","v":2020}," Annual Reporting of Energy Usage/Export"]
[]
[{"$f":"+'Cover Page'!B31","v":"Permit EPR/ZP3937KL"},null,null,null,null,"Operator: ","SUEZ Recycling and Recycling UK Ltd"]
[]
["Facility:",{"$f":"+'Cover Page'!B33:I33","v":"Severnside Energy Recovery Centre"},null,null,null,"Form:","Energy 1"]
[]
["Reporting  Period from: ",null,null,{"$f":"+'Perf. Form 1'!D6:E6","v":"2020-01-01"},null,"to:",{"$f":"+'Perf. Form 1'!G6:H6","v":"2020-12-31"}]
[]
["Energy Source",null,null,"Energy Usage",null,"Unit","Specific Useage (KWh/tonne incinerated"]
["Electricity Produced",null,null,{"$f":"+'Operational Data'!G24","v":307876},null,"MWh",{"$f":"+'Operational Data'!H24","v":749.0244163528256}]
["Electricity Imported   ",null,null,{"$f":"+'Operational Data'!G27","v":163},null,"MWh",{"$f":"+'Operational Data'!H27","v":0.39655893887640015}]
["Electricity Exported",null,null,{"$f":"+'Operational Data'!G25","v":280959},null,"MWh",{"$f":"+'Operational Data'!H25","v":683.53866814585581}]
["Gas Oil",null,null,{"$f":"('Operational Data'!G48/1000)*0.845","v":624.13136499999996},null,"tonnes"]
["Steam/hot water exported",null,null,{"$f":"+'Operational Data'!G30","v":0},null,"GWh",{"$f":"+'Operational Data'!H30","v":"-"}]
[]
[]
[]
["Operator’s comments :"]
[]
[]
[]
[]
[]
[]
[]
[]
[]
[]
["Signed: ",null,null,null,null,null,"Date:","2021-01-27"]

{"sheet":"Permit Compliance","index":7,"n_rows":39,"n_cols":12,"rows_kept":39,"cut":false,"hidden":false,"merged":[[8,11,17,14],[38,4,38,8],[9,0,9,1],[9,2,9,4],[9,5,9,8],[10,0,10,1],[10,2,10,4],[10,5,10,8],[11,0,11,1],[11,2,11,4],[11,5,11,8],[12,0,12,1],[12,2,12,4],[12,5,12,8],[13,0,13,1],[13,2,13,4],[7,0,7,1],[7,2,7,8],[8,0,8,1],[8,2,8,4],[8,5,8,8],[13,5,13,8],[14,0,14,1],[14,2,14,4],[14,5,14,8],[15,0,15,1],[16,2,16,4],[16,5,16,8],[15,2,15,4],[15,5,15,8],[16,0,16,1],[19,1,19,3],[19,4,19,6],[19,7,19,9],[20,1,20,3],[20,4,20,6],[20,7,20,9],[21,4,21,6],[21,7,21,9],[22,1,22,3],[22,4,22,6],[22,7,22,9],[26,0,26,10],[18,0,18,10],[36,1,36,3],[27,1,27,3],[27,4,27,6],[27,7,27,9],[33,1,33,3],[23,1,23,3],[23,4,23,6],[23,7,23,9],[24,1,24,3],[24,4,24,6],[34,1,34,3],[35,1,35,3],[24,7,24,9],[21,1,21,3],[32,1,32,3],[28,1,28,3],[28,4,28,6],[28,7,28,9],[29,1,29,3],[29,4,29,6],[29,7,29,9],[30,4,37,6],[30,7,37,9],[30,1,30,3],[31,1,31,3],[37,1,37,3]]}
[{"$f":"+'Cover Page'!$B$29","v":"Annual Performance Report 2020"},null,null,null,{"$f":"+'Cover Page'!$B$33","v":"Severnside Energy Recovery Centre"}]
[]
["Summary of Permit Compliance"]
[]
["Compliance with permit limits for continuously monitored pollutants"]
[]
["The plant met its emission limits as shown in the table below:"]
["Substance",null,"Percentage time compliant during operation",null,null,null,null,null,null,null,null,"Notes:"]
[null,null,"Half-hourly limit",null,null,"Daily limit",null,null,null,null,null,"Report to 2 decimal places, i.e. xx.xx%\n\nPlease provide a brief summary of each notification or non-compliance in the table (rather than just referring to notifications that were sent to the Regulator).  \n\n"]
["Particulates",null,1,null,null,1]
["Oxides of nitrogen",null,1,null,null,1]
["Sulphur dioxide",null,1,null,null,1]
["Carbon monoxide",null," 100.00% (95% of 10-min averages)",null,null,1]
["Total organic carbon",null,1,null,null,1]
["Hydrogen chloride",null,1,null,null,1]
["Ammonia",null,"N/A",null,null,1]
[]
[]
["Summary of any notifications or non-compliances under the permit"]
["Date","Summary of notification or non-compliance [including Line/Reference]",null,null,"Reason ",null,null,"Measures taken to prevent reoccurrence"]
["2020-04-01","Abnormal Operation - particulates on Line 1",null,null,"Failed chamber isolation",null,null,"Cleaning/Maintenance"]
["2020-04-03","Abnormal Operation - particulates on Line 1",null,null,"Failed bag filter",null,null,"Failed filter replaced"]
["2020-07-14","Abnormal Operation - particulates on Line 2",null,null,"Failed chamber isolation",null,null,"Cleaning/Maintenance"]
["2020-11-21","Abnormal Operation - particulates on Line 1",null,null,"Loose dust in chamber lid",null,null,"Cleaning"]
["2020-12-28","Abnormal Operation - loss of VOC CEMs L1&L2",null,null,"Failed gas releif valve",null,null,"Releif valve repaired"]
[]
["Summary of any complaints received and actions to taken to resolve them."]
["Date","Summary of complaint [including Line/Reference]",null,null,"Reason *",null,null,"Measures taken to prevent reoccurrence"]
["2020-04-21","Amenity complaint - flies in Severn Beach\n(11 complaints) ",null,null,"Not from the site- not substantiated by the EA",null,null,"EA inspection confirmed no flies on site"]
["2020-08-07","Amenity complaint - flies in Severn Beach\n(1 complaint)",null,null,"Not from the site- not substantiated by the EA",null,null,"None required, proactive controls already in place"]
["2020-10-14","Amenity complaint - 11 complaints re noise from Severn Beach & Pilning residents.",null,null,"Potential source from FGT ID fans - not substantiated by the EA",null,null,"Action Plan agreed with South Glos. Council Environmental Protection officer"]
["2020-11-09","Amenity complaint - noise x 2"]
["2020-11-10","Amenity complaint - noise x 2"]
["2020-11-14","Amenity complaint - noise x 2 "]
["2020-11-17","Amenity complaint - noise x 3"]
["2020-11-24","Amenity complaint - noise x 1 "]
["2020-12-15","Amenity complaint - noise x 1"]
["2020-12-19","Amenity complaint - noise x 1 "]
[null,null,null,null,"* including whether substantiated by the operator or the EA"]

{"sheet":"Improvements","index":8,"n_rows":39,"n_cols":5,"rows_kept":39,"cut":false,"hidden":false,"merged":[[37,0,37,9],[38,0,47,9],[4,0,4,9],[5,0,13,9],[15,0,15,9],[16,0,24,9],[26,0,26,9],[27,0,35,9]]}
[{"$f":"+'Cover Page'!$B$29","v":"Annual Performance Report 2020"},null,null,null,{"$f":"+'Cover Page'!$B$33","v":"Severnside Energy Recovery Centre"}]
[]
["Summary of Plant Improvements"]
[]
["Summary of any efficiency improvements that have been completed within the year."]
["Changes to EfW emisison limits to be implemented by the EA stem from a review of the Best Available Techniques (BAT) Reference Document (BREF) for Waste Incineration. The site did conduct Some NOx trials to assess performance against the new limit, and we have a presentation on the results, this is being shared with the Environment Agency separately.\n"]
[]
[]
[]
[]
[]
[]
[]
[]
[]
["Summary of any permit improvement conditions that have been completed within the year and the resulting environmental benefits."]
["N/A"]
[]
[]
[]
[]
[]
[]
[]
[]
[]
["Summary of any changes to the plant or operating techniques which required a variation to the permit and a summary of the resulting environmental impact."]
["A permit variation was issued to SUEZ by the Environment Agency on the 17 Match 2020. The operator led application was to request an annual capacity increase. An air quality assessment was undertaken to demonstrate that the change would have no advesre environmental effect. The permit variation increased the annual waste acceptance limit from 400,000 tonnes to 500,000 tonnes and increased the annual waste treatment capacity from 400,000 tonnes to 467,082 tonnes."]
[]
[]
[]
[]
[]
[]
[]
[]
[]
["Summary of any other improvements made to the plant or planned to be made and a summary of the resulting environmental benefits."]
["The site is looking at modifications to the Induced Draft air fan duct work. This is intended to reduce some of the low frequency noise being emitted from the fans during oepration. The work is planned for January 2021."]

{"sheet":"Public Liasion","index":9,"n_rows":29,"n_cols":5,"rows_kept":29,"cut":false,"hidden":false,"merged":[[16,0,16,1],[16,2,16,9],[5,0,5,1],[5,2,5,9],[6,0,7,1],[6,2,7,9],[8,0,9,1],[8,2,9,9],[10,0,11,1],[10,2,11,9],[12,0,13,1],[12,2,13,9],[15,0,15,9],[17,0,18,1],[17,2,18,9],[19,0,20,1],[19,2,20,9],[21,0,22,1],[21,2,22,9],[23,0,24,1],[23,2,24,9],[25,0,26,1],[25,2,26,9],[28,0,28,9]]}
[{"$f":"+'Cover Page'!$B$29","v":"Annual Performance Report 2020"},null,null,null,{"$f":"+'Cover Page'!$B$33","v":"Severnside Energy Recovery Centre"}]
[]
["Details of Public & Stakeholder Liasion"]
[]
["Summary of events held during the reporting year."]
["Date",null,"Description"]
["Monthly",null,"We hold monthly meeting with the Stakeholders the munities of these meeting can be produced on request"]
[]
["15th October",null,"Meeting with Local parish councillor"]
[]
["13th Febuary ",null,"Meeting with South Glos Enviromental Officer"]
[]
[]
[]
[]
["List of events planned for next year"]
["Date",null,"Description"]
["Monthly ",null,"Stakeholder meetings"]
[]
["August",null,"Planned openday, will have to review depends on Covid-19"]
[]
[]
[]
[]
[]
[]
[]
[]
["If you wish to be involved in the public liaison programme, please contact Stephen Fisher 07870253011_________________"]

{"sheet":"Residue Quality ","index":10,"n_rows":35,"n_cols":6,"rows_kept":35,"cut":false,"hidden":false,"merged":[[16,0,17,1],[16,2,17,6],[18,0,19,1],[18,2,19,6],[12,0,12,6],[13,0,13,1],[13,2,13,6],[5,0,6,6],[7,0,8,6],[9,0,10,6],[14,0,15,1],[14,2,15,6],[20,0,21,1],[20,2,21,6],[22,0,23,1],[22,2,23,6],[31,3,31,4],[27,2,28,2],[28,3,28,4],[28,5,28,6],[27,3,27,6],[26,0,26,6],[35,0,40,6],[32,3,32,4],[34,0,34,6],[27,0,28,1],[29,0,29,1],[30,0,30,1],[31,0,31,1],[32,0,32,1],[29,3,29,4],[30,3,30,4],[29,5,29,6],[30,5,30,6],[31,5,31,6],[32,5,32,6]]}
[{"$f":"+'Cover Page'!$B$29","v":"Annual Performance Report 2020"},null,null,null,{"$f":"+'Cover Page'!$B$33","v":"Severnside Energy Recovery Centre"}]
[]
["Residue Quality Monitoring Requirements"]
[]
["Summary of monitoring undertaken and compliance"]
["The samples for the quarterly IBA analysis were undertaken on the 10/02/2020, the 20/05/2020, the 11/09/2020 and the 03/12/2020."]
[]
["There were no issues identified by the analysis and all results for TOC were below the permit limit.\nLOI analysis is not required as TOC ananlysis is provided."]
[]
[]
[]
[]
["Commentary on any specific events"]
["Date & Event",null,"Description"]
[]
[]
[]
[]
[]
[]
[]
[]
[]
[]
[]
[]
["Residue Quality Monitoring Results"]
["Parameter (unit) ",null,"Limit","Normal Operation "]
[null,null,null,"Bottom ash  ",null,"APC Residues"]
["Loss on Ignition (average %)",null,"<5%","N/A"]
["Total Organic Carbon (average %)",null,"<3%",0.80500000000000005]
["No. of Assessments Undertaken",null,"---",4,null,4]
["No. of Hazardous Results",null,"---",0]
[]
["Comments :"]

{"sheet":"Water","index":11,"n_rows":26,"n_cols":10,"rows_kept":26,"cut":false,"hidden":false,"merged":[[5,0,6,9],[7,0,8,9],[9,0,10,9],[12,0,12,9],[13,0,13,1],[13,2,13,9],[21,0,21,9],[22,0,22,2],[22,3,22,5],[14,0,15,1],[14,2,15,9],[16,0,17,1],[16,2,17,9],[18,0,19,1],[18,2,19,9],[23,0,23,2],[23,3,23,5],[24,0,24,2],[24,3,24,5],[25,0,25,2],[25,3,25,5],[29,0,29,2],[29,3,29,5],[26,0,26,2],[26,3,26,5],[27,0,27,2],[27,3,27,5],[28,0,28,2],[28,3,28,5]]}
[{"$f":"+'Cover Page'!$B$29","v":"Annual Performance Report 2020"},null,null,null,{"$f":"+'Cover Page'!$B$33","v":"Severnside Energy Recovery Centre"}]
[]
["Emissions to Water"]
[]
["Summary of monitoring undertaken and compliance"]
["W1 is the emission point from the Surface Water Management System to the Red Rhine via the swale.\nNo discharge was observed from this emission point during the reporting period."]
[]
["W2 is the emission point from the railhead drainage system to the Red Rhine.\nNo discharge was observed from this emission point during the reporting period."]
[]
["W3 is the emission point for overflow from the clean rainwater and firewater tanks to the Red Rhine.\nNo discharge from this emission point was observed during the reporting period."]
[]
[]
["Commentary on any specific events"]
["Date & Event",null,"Description"]
["2020-09-01",null,"Penstock valve from Pond 1 to the underground water attenuation tank closed to prevent uneccessary recirculation of surface water."]
[]
[]
[]
[]
[]
[]
["Emissions to Water / Sewer"]
["Parameter",null,null,"Monitoring Frequency",null,null,"Limit","Target","Max.","Average"]
["Suspended solids",null,null,"weekly (W1) monthly (W2)",null,null,"30 mg/l",null,"n/a","n/a"]
["Oil",null,null,"weekly (W1) monthly (W2)",null,null,"5 mg/l",null,"n/a","n/a"]
["Oil",null,null,"weekly (W1) monthly (W2)",null,null,"No visible oil",null,"n/a","n/a"]

{"sheet":"Air (periodic)","index":12,"n_rows":40,"n_cols":13,"rows_kept":40,"cut":false,"hidden":false,"merged":[[5,12,8,15],[9,12,11,15],[8,0,8,9],[5,0,6,9],[11,0,11,1],[12,0,12,1],[11,3,11,4],[12,3,12,4],[9,0,10,1],[9,5,9,9],[9,3,10,4],[9,2,10,2],[16,0,16,1],[17,0,17,1],[18,0,18,1],[13,0,13,1],[14,0,14,1],[15,0,15,1],[39,0,40,9],[25,0,25,1],[26,0,26,1],[22,0,22,1],[23,0,23,1],[37,0,37,1],[27,0,27,1],[28,0,28,1],[29,0,29,1],[30,0,30,1],[31,0,31,1],[32,0,32,1],[37,3,37,4],[29,3,29,4],[30,3,30,4],[36,3,36,4],[38,0,38,9],[19,0,19,1],[20,0,20,1],[21,0,21,1],[34,3,34,4],[35,3,35,4],[33,0,33,1],[34,0,34,1],[35,0,35,1],[36,0,36,1],[24,0,24,1],[32,3,32,4],[13,3,13,4],[14,3,14,4],[15,3,15,4],[16,3,16,4],[17,3,17,4],[18,3,18,4],[27,3,27,4],[33,3,33,4],[19,3,19,4],[20,3,20,4],[21,3,21,4],[22,3,22,4],[23,3,23,4],[24,3,24,4],[31,3,31,4],[25,3,25,4],[26,3,26,4],[28,3,28,4]]}
[{"$f":"+'Cover Page'!$B$29","v":"Annual Performance Report 2020"},null,null,null,{"$f":"+'Cover Page'!$B$33","v":"Severnside Energy Recovery Centre"}]
[]
["Emissions to Air (periodically monitored)"]
[]
["Summary of monitoring undertaken, standards used and compliance",null,null,null,null,null,null,null,null,null,null,null,"Notes:"]
["The periodic emissions testing is carried out bi-annually in accordance with the requirements of the Permit by Element Materials Technology. The scheduled emissions testing visits were carried out during February and August 2020. Due to equipment failure Element had to undertake a further visit during April to complete the required emissions testing for the Q1/Q2 period.",null,null,null,null,null,null,null,null,null,null,null,"Template may require adjustment for any bespoke monitoring requirements of permit. "]
[]
[]
["Results of emissions to air that are periodically monitored"]
["Substance",null,"Ref. Period","Emission Limit Value",null,"Average",null,null,null,null,null,null,"User to add additional tables as necessary, depending on whether quarterly or bi-annual reporting is required for the compliance year"]
[null,null,null,null,null,"A1","A2","A3","A4","A5"]
["Hydrogen fluoride",null,"1 hr","2 mg/m3",null,2.9499999999999998E-2,3.6000000000000004E-2]
["Cd and Th and their compounds",null,"6-8hrs","0.05 mg/m3",null,3.4000000000000002E-3,4.4000000000000003E-3]
["Hg and its compounds",null,"6-8hrs","0.05 mg/m3",null,8.9999999999999998E-4,8.3000000000000001E-4]
["Sb, As, Pb, Cr, Co, Cu, Mn, Ni, V and their compounds",null,"6-8hrs","0.5 mg/m3",null,7.2950000000000001E-2,3.95E-2]
["Dioxins & Furans (I-TEQ)",null,"6-8hrs","0.1 ng/m3",null,1.5499999999999999E-3,4.15E-3]
["PCBs (WHO-TEQ Humans / Mammals)",null,"6-8hrs","None set ng/m3",null,2.9750000000000002E-4,1.3419999999999999E-3]
["PCBs (WHO-TEQ Fish)",null,"6-8hrs","None set ng/m3",null,1.7E-5,9.0000000000000002E-6]
["PCBs (WHO-TEQ Birds)",null,"6-8hrs","None set ng/m3",null,8.6549999999999995E-4,4.8250000000000002E-4]
["Dioxins & Furans (WHO-TEQ Humans / Mammals)",null,"6-8hrs","None set ng/m3",null,1.5999999999999999E-3,4.1999999999999997E-3]
["Dioxins & Furans (WHO-TEQ Fish)",null,"6-8hrs","None set ng/m3",null,1.4E-3,4.3499999999999997E-3]
["Dioxins & Furans (WHO-TEQ Birds)",null,"6-8hrs","None set ng/m3",null,1.9499999999999999E-3,6.2000000000000006E-3]
["Anthanthrene",null,"6-8hrs","None set µg/m3",null,7.6500000000000005E-4,6.4999999999999997E-4]
["Benzo(a)anthracene",null,"6-8hrs","None set µg/m3",null,7.6500000000000005E-4,1.4E-3]
["Benzo(a)pyrene",null,"6-8hrs","None set µg/m3",null,7.6500000000000005E-4,2.15E-3]
["Benzo(b)fluoranthene",null,"6-8hrs","None set µg/m3",null,7.6500000000000005E-4,5.8000000000000005E-3]
["Benzo(b)naptho(2,1-d) thiophene",null,"6-8hrs","None set µg/m3",null,7.6500000000000005E-4,6.4999999999999997E-4]
["Benzo(c)phenanthrene",null,"6-8hrs","None set µg/m3",null,7.6500000000000005E-4,8.0000000000000004E-4]
["Benzo(ghi)perylene",null,"6-8hrs","None set µg/m3",null,7.6500000000000005E-4,1.6999999999999999E-3]
["Benzo(k)fluoranthene",null,"6-8hrs","None set µg/m3",null,8.5000000000000006E-4,2.5499999999999997E-3]
["Cholanthrene",null,"6-8hrs","None set µg/m3",null,7.6550000000000001E-4,6.4999999999999997E-4]
["Chrysene",null,"6-8hrs","None set µg/m3",null,2.3500000000000001E-3,4.4000000000000003E-3]
["Cyclopenta(cd)pyrene",null,"6-8hrs","None set µg/m3",null,7.6500000000000005E-4,8.5000000000000006E-4]
["Dibenzo(ai)pyrene",null,"6-8hrs","None set µg/m3",null,7.6500000000000005E-4,6.4999999999999997E-4]
["Dibenzo(ah)anthracene",null,"6-8hrs","None set µg/m3",null,7.6500000000000005E-4,6.4999999999999997E-4]
["Fluoranthene",null,"6-8hrs","None set µg/m3",null,7.5500000000000003E-3,3.4999999999999996E-3]
["Indeno(123-cd) pyrene",null,"6-8hrs","None set µg/m3",null,7.6500000000000005E-4,1.8500000000000001E-3]
["Naphthalene",null,"6-8hrs","None set µg/m3",null,0.80395000000000005,0.18440000000000001]
["Comments :"]
["Where the laboratory result was reported as a Method Detection Limit, the result has been replaced with a value equal to the MDL. Where dioxins/furans have been reported at the MDL the value has been replaced with a value equal to 0.5 times the MDL as per guidance received from the Environment Agency (Ben Freeman)."]

{"sheet":"Air (CEMS)","index":13,"n_rows":28,"n_cols":16,"rows_kept":28,"cut":false,"hidden":false,"merged":[[19,0,20,0],[21,0,22,0],[23,0,24,0],[26,0,26,12],[28,0,29,12],[15,0,16,0],[17,0,18,0],[13,0,14,0],[5,0,6,12],[7,0,8,12],[10,0,10,12],[11,0,12,0],[11,2,12,2],[11,1,12,1],[11,3,11,4],[11,5,11,6],[11,7,11,8],[11,9,11,10],[11,11,11,12]]}
[{"$f":"+'Cover Page'!$B$29","v":"Annual Performance Report 2020"},null,null,null,null,null,null,null,{"$f":"+'Cover Page'!$B$33","v":"Severnside Energy Recovery Centre"}]
[]
["Emissions to Air (continously monitored)"]
[null,null,null,null,null,null,null,null,null,null,null,null,null,null,null,"Notes:"]
["Summary of monitoring undertaken, standards used and compliance",null,null,null,null,null,null,null,null,null,null,null,null,null,null,"Template may require adjustment for any bespoke monitoring requirements of permit"]
[null,null,null,null,null,null,null,null,null,null,null,null,null,null,null,"Report to 2 decimal places, i.e. xx.xx%"]
[]
[]
[]
[]
["Results of emissions to air that are continuously monitored (maximum and average values for each line)"]
["Substance","Reference Period","Emission Limit Value","A1",null,"A2",null,"A3",null,"A4",null,"A5"]
[null,null,null,"Max.","Avg.","Max.","Avg.","Max.","Avg.","Max.","Avg.","Max.","Avg."]
["Oxides of nitrogen","Daily mean","200 mg/m3 ",{"$f":"NOx!O19","v":149},{"$f":"NOx!N19","v":135.33333333333334},{"$f":"NOx!O34","v":150},{"$f":"NOx!N34","v":135.41666666666666}]
[null,"½ hourly mean","400 mg/m3 ",{"$f":"NOx!M19","v":247},{"$f":"NOx!L19","v":135.33333333333334},{"$f":"NOx!M34","v":225},{"$f":"NOx!L34","v":135.41666666666666}]
["Particulates","Daily mean","10 mg/m3",{"$f":"Particulates!O19","v":9},{"$f":"Particulates!N19","v":2.9333333333333336},{"$f":"Particulates!O34","v":8},{"$f":"Particulates!N34","v":2.1999999999999997}]
[null,"½ hourly mean","30 mg/m3 ",{"$f":"Particulates!M19","v":51},{"$f":"Particulates!L19","v":2.9333333333333336},{"$f":"Particulates!M34","v":33.700000000000003},{"$f":"Particulates!L34","v":2.1999999999999997}]
["Total Organic Carbon ","Daily mean","10 mg/m3 ",{"$f":"TOC!O19","v":3.4},{"$f":"TOC!N19","v":0.3249999999999999},{"$f":"TOC!O34","v":1},{"$f":"TOC!N34","v":0.28333333333333333}]
[null,"½ hourly mean","20 mg/m3 ",{"$f":"TOC!M19","v":11.1},{"$f":"TOC!L19","v":0.3249999999999999},{"$f":"TOC!M34","v":7.2},{"$f":"TOC!L34","v":0.28333333333333333}]
["Hydrogen chloride ","Daily mean","10 mg/m3 ",{"$f":"HCl!O19","v":5.0999999999999996},{"$f":"HCl!N19","v":1.7583333333333335},{"$f":"HCl!O34","v":7.6},{"$f":"HCl!N34","v":3.5583333333333336}]
[null,"½ hourly mean","60 mg/m3 ",{"$f":"HCl!M19","v":7.1},{"$f":"HCl!L19","v":1.7583333333333335},{"$f":"HCl!M34","v":54},{"$f":"HCl!L34","v":3.5583333333333336}]
["Sulphur dioxide","Daily mean","50 mg/m3 ",{"$f":"'SO2'!O19","v":36},{"$f":"'SO2'!N19","v":7.1083333333333334},{"$f":"'SO2'!O34","v":26},{"$f":"'SO2'!N34","v":8.2833333333333332}]
[null,"½ hourly mean","200 mg/m3 ",{"$f":"'SO2'!M19","v":64},{"$f":"'SO2'!L19","v":7.1083333333333334},{"$f":"'SO2'!M34","v":104},{"$f":"'SO2'!L34","v":8.2833333333333332}]
["Carbon monoxide ","Daily mean","50 mg/m3 ",{"$f":"'CO 95% 10 min'!Q19","v":15},{"$f":"'CO 95% 10 min'!P19","v":6.333333333333333},{"$f":"'CO 95% 10 min'!Q34","v":10},{"$f":"'CO 95% 10 min'!P34","v":4.75}]
[null,"95%ile 10-min avg","150 mg/m3 *",{"$f":"'CO 95% 10 min'!M19","v":11.68},{"$f":"'CO 95% 10 min'!N19","v":6.333333333333333},{"$f":"'CO 95% 10 min'!M34","v":21.830833333333334},{"$f":"'CO 95% 10 min'!N34","v":4.75}]
[" Ammonia","Daily mean","No limit set",{"$f":"'NH3'!O19","v":2},{"$f":"'NH3'!N19","v":0.73333333333333328},{"$f":"'NH3'!O34","v":1},{"$f":"'NH3'!N34","v":9.166666666666666E-2}]
["* = delete or amend as appropriate"]
["Comments :"]

{"sheet":"HCl","index":14,"n_rows":79,"n_cols":17,"rows_kept":79,"cut":false,"hidden":false,"merged":[[12,16,15,18],[51,9,63,9],[66,9,78,9],[4,9,4,14],[4,1,4,3],[4,4,4,6],[48,0,51,6],[47,0,47,6],[6,9,18,9],[21,9,33,9],[36,9,48,9],[3,16,7,18],[9,16,11,18]]}
[{"$f":"+'Cover Page'!$B$29","v":"Annual Performance Report 2020"},null,null,null,{"$f":"+'Cover Page'!$B$33","v":"Severnside Energy Recovery Centre"}]
[]
["Monitoring of Hydrogen Chloride emissions",null,null,"Whole Installation",null,null,"See  Notes in Cell Q3",null,null,{"$f":"+A3","v":"Monitoring of Hydrogen Chloride emissions"},null,null,null,"Per Combustion Line",null,null,"Notes:"]
[null,null,null,null,null,null,null,null,null,null,null,null,null,null,null,null,"User to add logic to complete Whole installation, Table A5:G18. From the data in Per Combustion Line, Table J6:O79, subject to No. of lines installed"]
["mg/Nm3","1/2 Hourly Reference Periods",null,null,"Daily Reference Periods"]
[{"$f":"+'Cover Page'!C39","v":2020},"1/2 hourly HCl ELV","Monthly 1/2 hourly mean","Highest 1/2 hourly maximum","Daily HCl ELV","Monthly daily mean","Highest daily maximum",null,null,{"$f":"+A6","v":2020},"mg/Nm3","Monthly 1/2 hourly mean","Monthly 1/2 hourly maximum","Monthly daily mean","Monthly daily maximum"]
["Jan",60,{"$f":"AVERAGE(L7,L22,L37,L52,L67)","v":3.5},{"$f":"AVERAGE(M7,M22,M37,M52,M67)","v":8.3999999999999986},10,{"$f":"AVERAGE(N7,N22,N37,N52,N67)","v":3.5},{"$f":"AVERAGE(O7,O22,O37,O52,O67)","v":5.9},null,null,"A1","Jan",2.8,7.1,2.8,4.8]
["Feb",60,{"$f":"AVERAGE(L8,L23,L38,L53,L68)","v":1.65},{"$f":"AVERAGE(M8,M23,M38,M53,M68)","v":3.3},10,{"$f":"AVERAGE(N8,N23,N38,N53,N68)","v":1.65},{"$f":"AVERAGE(O8,O23,O38,O53,O68)","v":2.15},null,null,null,"Feb",1.3,3,1.3,1.7]
["Mar",60,{"$f":"AVERAGE(L9,L24,L39,L54,L69)","v":1.4500000000000002},28.15,10,1.4500000000000002,2.4,null,null,null,"Mar",0.7,2.2999999999999998,0.7,1.9,null,"Whole Installation table A5:G18:"]
["Apr",60,1.5,6,10,1.5,3,null,null,null,"Apr",1,5,1,2,null,"Mean: for 1/2 hourly and daily periods calculate mean of values across all operational combustion lines for the month"]
["May",60,2,4.5,10,2,3.5,null,null,null,"May",1,3,1,2]
["Jun",60,2,7,10,2,4,null,null,null,"Jun",1,6,1,3]
["Jul",60,2.75,7,10,2.75,5.3,null,null,null,"Jul",1.9,6.8,1.9,5.0999999999999996,null,"Maximum: for 1/2 hourly and daily periods use the highest value across all operational combustion lines for the month"]
["Aug",60,3.9,8.4499999999999993,10,3.9,6.3,null,null,null,"Aug",2.8,6.9,2.8,5]
["Sep",60,3.9499999999999997,7.8000000000000007,10,3.9499999999999997,5.9,null,null,null,"Sep",2.8,6.3,2.8,4.5]
["Oct",60,3.75,7.75,10,3.75,5.9,null,null,null,"Oct",2.8,5.4,2.8,4.7]
["Nov",60,2.8,7,10,2.8,4.3,null,null,null,"Nov",1.5,5.5,1.5,3]
["Dec",60,2.65,6.55,10,2.65,4.5,null,null,null,"Dec",1.5,4.9000000000000004,1.5,3.6]
[null,null,null,null,null,null,null,null,null,null,"Annual",{"$f":"AVERAGE(L7:L18)","v":1.7583333333333335},{"$f":"MAX(M7:M18)","v":7.1},{"$f":"AVERAGE(N7:N18)","v":1.7583333333333335},{"$f":"MAX(O7:O18)","v":5.0999999999999996}]
[]
[null,null,null,null,null,null,null,null,null,{"$f":"+A6","v":2020},"mg/Nm3","Monthly 1/2 hourly mean","Monthly 1/2 hourly maximum","Monthly daily mean","Monthly daily maximum"]
[null,null,null,null,null,null,null,null,null,"A2","Jan",4.2,9.6999999999999993,4.2,7]
[null,null,null,null,null,null,null,null,null,null,"Feb",2,3.6,2,2.6]
[null,null,null,null,null,null,null,null,null,null,"Mar",2.2000000000000002,54,2.2000000000000002,2.9]
[null,null,null,null,null,null,null,null,null,null,"Apr",2,7,2,4]
[null,null,null,null,null,null,null,null,null,null,"May",3,6,3,5]
[null,null,null,null,null,null,null,null,null,null,"Jun",3,8,3,5]
[null,null,null,null,null,null,null,null,null,null,"Jul",3.6,7.2,3.6,5.5]
[null,null,null,null,null,null,null,null,null,null,"Aug",5,10,5,7.6]
[null,null,null,null,null,null,null,null,null,null,"Sep",5.0999999999999996,9.3000000000000007,5.0999999999999996,7.3]
[null,null,null,null,null,null,null,null,null,null,"Oct",4.7,10.1,4.7,7.1]
[null,null,null,null,null,null,null,null,null,null,"Nov",4.0999999999999996,8.5,4.0999999999999996,5.6]
[null,null,null,null,null,null,null,null,null,null,"Dec",3.8,8.1999999999999993,3.8,5.4]
[null,null,null,null,null,null,null,null,null,null,"Annual",{"$f":"AVERAGE(L22:L33)","v":3.5583333333333336},{"$f":"MAX(M22:M33)","v":54},{"$f":"AVERAGE(N22:N33)","v":3.5583333333333336},{"$f":"MAX(O22:O33)","v":7.6}]
[]
[null,null,null,null,null,null,null,null,null,{"$f":"+A6","v":2020},"mg/Nm3","Monthly 1/2 hourly mean","Monthly 1/2 hourly maximum","Monthly daily mean","Monthly daily maximum"]
[null,null,null,null,null,null,null,null,null,"A3","Jan"]
[null,null,null,null,null,null,null,null,null,null,"Feb"]
[null,null,null,null,null,null,null,null,null,null,"Mar"]
[null,null,null,null,null,null,null,null,null,null,"Apr"]
[null,null,null,null,null,null,null,null,null,null,"May"]
[null,null,null,null,null,null,null,null,null,null,"Jun"]
[null,null,null,null,null,null,null,null,null,null,"Jul"]
[null,null,null,null,null,null,null,null,null,null,"Aug"]
[null,null,null,null,null,null,null,null,null,null,"Sep"]
[null,null,null,null,null,null,null,null,null,null,"Oct"]
[null,null,null,null,null,null,null,null,null,null,"Nov"]
["Comments :",null,null,null,null,null,null,null,null,null,"Dec"]
[null,null,null,null,null,null,null,null,null,null,"Annual",{"$f":"AVERAGE(L37:L48)","v":{"$error":"#DIV/0!"}},{"$f":"MAX(M37:M48)","v":0},{"$f":"AVERAGE(N37:N48)","v":{"$error":"#DIV/0!"}},{"$f":"MAX(O37:O48)","v":0}]
[]
[null,null,null,null,null,null,null,null,null,{"$f":"+A6","v":2020},"mg/Nm3","Monthly 1/2 hourly mean","Monthly 1/2 hourly maximum","Monthly daily mean","Monthly daily maximum"]
[null,null,null,null,null,null,null,null,null,"A4","Jan"]
[null,null,null,null,null,null,null,null,null,null,"Feb"]
[null,null,null,null,null,null,null,null,null,null,"Mar"]
[null,null,null,null,null,null,null,null,null,null,"Apr"]
[null,null,null,null,null,null,null,null,null,null,"May"]
[null,null,null,null,null,null,null,null,null,null,"Jun"]
[null,null,null,null,null,null,null,null,null,null,"Jul"]
[null,null,null,null,null,null,null,null,null,null,"Aug"]
[null,null,null,null,null,null,null,null,null,null,"Sep"]
[null,null,null,null,null,null,null,null,null,null,"Oct"]
[null,null,null,null,null,null,null,null,null,null,"Nov"]
[null,null,null,null,null,null,null,null,null,null,"Dec"]
[null,null,null,null,null,null,null,null,null,null,"Annual",{"$f":"AVERAGE(L52:L63)","v":{"$error":"#DIV/0!"}},{"$f":"MAX(M52:M63)","v":0},{"$f":"AVERAGE(N52:N63)","v":{"$error":"#DIV/0!"}},{"$f":"MAX(O52:O63)","v":0}]
[]
[null,null,null,null,null,null,null,null,null,{"$f":"+A6","v":2020},"mg/Nm3","Monthly 1/2 hourly mean","Monthly 1/2 hourly maximum","Monthly daily mean","Monthly daily maximum"]
[null,null,null,null,null,null,null,null,null,"A5","Jan"]
[null,null,null,null,null,null,null,null,null,null,"Feb"]
[null,null,null,null,null,null,null,null,null,null,"Mar"]
[null,null,null,null,null,null,null,null,null,null,"Apr"]
[null,null,null,null,null,null,null,null,null,null,"May"]
[null,null,null,null,null,null,null,null,null,null,"Jun"]
[null,null,null,null,null,null,null,null,null,null,"Jul"]
[null,null,null,null,null,null,null,null,null,null,"Aug"]
[null,null,null,null,null,null,null,null,null,null,"Sep"]
[null,null,null,null,null,null,null,null,null,null,"Oct"]
[null,null,null,null,null,null,null,null,null,null,"Nov"]
[null,null,null,null,null,null,null,null,null,null,"Dec"]
[null,null,null,null,null,null,null,null,null,null,"Annual",{"$f":"AVERAGE(L67:L78)","v":{"$error":"#DIV/0!"}},{"$f":"MAX(M67:M78)","v":0},{"$f":"AVERAGE(N67:N78)","v":{"$error":"#DIV/0!"}},{"$f":"MAX(O67:O78)","v":0}]

{"sheet":"SO2","index":15,"n_rows":79,"n_cols":17,"rows_kept":79,"cut":false,"hidden":false,"merged":[[3,16,7,18],[9,16,11,18],[12,16,15,18],[66,9,78,9],[4,1,4,3],[4,4,4,6],[4,9,4,14],[6,9,18,9],[21,9,33,9],[36,9,48,9],[47,0,47,6],[48,0,51,6],[51,9,63,9]]}
[{"$f":"+'Cover Page'!$B$29","v":"Annual Performance Report 2020"},null,null,null,{"$f":"+'Cover Page'!$B$33","v":"Severnside Energy Recovery Centre"}]
[]
["Monitoring of Sulphur dioxide emissions",null,null,"Whole Installation",null,null,"See  Notes in Cell Q3",null,null,{"$f":"+A3","v":"Monitoring of Sulphur dioxide emissions"},null,null,null,"Per Combustion Line",null,null,"Notes:"]
[null,null,null,null,null,null,null,null,null,null,null,null,null,null,null,null,"User to add logic to complete Whole installation, Table A5:G18. From the data in Per Combustion Line, Table J6:O79, subject to No. of lines installed"]
["mg/Nm3","1/2 Hourly Reference Periods",null,null,"Daily Reference Periods"]
[{"$f":"+'Cover Page'!C39","v":2020},"1/2 hourly SO2 ELV","Monthly 1/2 hourly mean","Highest 1/2 hourly maximum","Daily SO2 ELV","Monthly daily mean","Highest daily maximum",null,null,{"$f":"+A6","v":2020},"mg/Nm3","Monthly 1/2 hourly mean","Monthly 1/2 hourly maximum","Monthly daily mean","Monthly daily maximum"]
["Jan",200,{"$f":"AVERAGE(L7,L22,L37,L52,L67)","v":5},{"$f":"AVERAGE(M7,M22,M37,M52,M67)","v":45},50,{"$f":"AVERAGE(N7,N22,N37,N52,N67)","v":5},{"$f":"AVERAGE(O7,O22,O37,O52,O67)","v":9},null,null,"A1","Jan",6,43,6,11]
["Feb",200,{"$f":"AVERAGE(L8,L23,L38,L53,L68)","v":14},66,50,{"$f":"AVERAGE(N8,N23,N38,N53,N68)","v":14},29.5,null,null,null,"Feb",17,49,17,33]
["Mar",200,{"$f":"AVERAGE(L9,L24,L39,L54,L69)","v":11.5},84,50,{"$f":"AVERAGE(N9,N24,N39,N54,N69)","v":11.5},31,null,null,null,"Mar",14,64,14,36,null,"Whole Installation table A5:G18:"]
["Apr",200,{"$f":"AVERAGE(L10,L25,L40,L55,L70)","v":6.5},47.5,50,{"$f":"AVERAGE(N10,N25,N40,N55,N70)","v":6.5},14,null,null,null,"Apr",6,56,6,14,null,"Mean: for 1/2 hourly and daily periods calculate mean of values across all operational combustion lines for the month"]
["May",200,{"$f":"AVERAGE(L11,L26,L41,L56,L71)","v":8},50,50,{"$f":"AVERAGE(N11,N26,N41,N56,N71)","v":8},15,null,null,null,"May",7,62,7,14]
["Jun",200,{"$f":"AVERAGE(L12,L27,L42,L57,L72)","v":7.5},42,50,{"$f":"AVERAGE(N12,N27,N42,N57,N72)","v":7.5},13,null,null,null,"Jun",7,42,7,16]
["Jul",200,{"$f":"AVERAGE(L13,L28,L43,L58,L73)","v":6},40.5,50,{"$f":"AVERAGE(N13,N28,N43,N58,N73)","v":6},10.5,null,null,null,"Jul",4,34,4,8,null,"Maximum: for 1/2 hourly and daily periods use the highest value across all operational combustion lines for the month"]
["Aug",200,{"$f":"AVERAGE(L14,L29,L44,L59,L74)","v":7},43,50,{"$f":"AVERAGE(N14,N29,N44,N59,N74)","v":7},10,null,null,null,"Aug",5,48,5,10]
["Sep",200,{"$f":"AVERAGE(L15,L30,L45,L60,L75)","v":5.5},45,50,{"$f":"AVERAGE(N15,N30,N45,N60,N75)","v":5.5},11,null,null,null,"Sep",4,60,4,12]
["Oct",200,{"$f":"AVERAGE(L16,L31,L46,L61,L76)","v":5.8},22.549999999999997,50,{"$f":"AVERAGE(N16,N31,N46,N61,N76)","v":5.8},7.3000000000000007,null,null,null,"Oct",3.6,11.2,3.6,4.8]
["Nov",200,{"$f":"AVERAGE(L17,L32,L47,L62,L77)","v":6.5500000000000007},58.35,50,{"$f":"AVERAGE(N17,N32,N47,N62,N77)","v":6.5500000000000007},11.75,null,null,null,"Nov",4.7,63.2,4.7,10.1]
["Dec",200,{"$f":"AVERAGE(L18,L33,L48,L63,L78)","v":9},41.5,50,{"$f":"AVERAGE(N18,N33,N48,N63,N78)","v":9},15,null,null,null,"Dec",7,49,7,17]
[null,null,null,null,null,null,null,null,null,null,"Annual",{"$f":"AVERAGE(L7:L18)","v":7.1083333333333334},{"$f":"MAX(M7:M18)","v":64},{"$f":"AVERAGE(N7:N18)","v":7.1083333333333334},{"$f":"MAX(O7:O18)","v":36}]
[]
[null,null,null,null,null,null,null,null,null,{"$f":"+A6","v":2020},"mg/Nm3","Monthly 1/2 hourly mean","Monthly 1/2 hourly maximum","Monthly daily mean","Monthly daily maximum"]
[null,null,null,null,null,null,null,null,null,"A2","Jan",4,47,4,7]
[null,null,null,null,null,null,null,null,null,null,"Feb",11,83,11,26]
[null,null,null,null,null,null,null,null,null,null,"Mar",9,104,9,26]
[null,null,null,null,null,null,null,null,null,null,"Apr",7,39,7,14]
[null,null,null,null,null,null,null,null,null,null,"May",9,38,9,16]
[null,null,null,null,null,null,null,null,null,null,"Jun",8,42,8,10]
[null,null,null,null,null,null,null,null,null,null,"Jul",8,47,8,13]
[null,null,null,null,null,null,null,null,null,null,"Aug",9,38,9,10]
[null,null,null,null,null,null,null,null,null,null,"Sep",7,30,7,10]
[null,null,null,null,null,null,null,null,null,null,"Oct",8,33.9,8,9.8000000000000007]
[null,null,null,null,null,null,null,null,null,null,"Nov",8.4,53.5,8.4,13.4]
[null,null,null,null,null,null,null,null,null,null,"Dec",11,34,11,13]
[null,null,null,null,null,null,null,null,null,null,"Annual",{"$f":"AVERAGE(L22:L33)","v":8.2833333333333332},{"$f":"MAX(M22:M33)","v":104},{"$f":"AVERAGE(N22:N33)","v":8.2833333333333332},{"$f":"MAX(O22:O33)","v":26}]
[]
[null,null,null,null,null,null,null,null,null,{"$f":"+A6","v":2020},"mg/Nm3","Monthly 1/2 hourly mean","Monthly 1/2 hourly maximum","Monthly daily mean","Monthly daily maximum"]
[null,null,null,null,null,null,null,null,null,"A3","Jan"]
[null,null,null,null,null,null,null,null,null,null,"Feb"]
[null,null,null,null,null,null,null,null,null,null,"Mar"]
[null,null,null,null,null,null,null,null,null,null,"Apr"]
[null,null,null,null,null,null,null,null,null,null,"May"]
[null,null,null,null,null,null,null,null,null,null,"Jun"]
[null,null,null,null,null,null,null,null,null,null,"Jul"]
[null,null,null,null,null,null,null,null,null,null,"Aug"]
[null,null,null,null,null,null,null,null,null,null,"Sep"]
[null,null,null,null,null,null,null,null,null,null,"Oct"]
[null,null,null,null,null,null,null,null,null,null,"Nov"]
["Comments :",null,null,null,null,null,null,null,null,null,"Dec"]
[null,null,null,null,null,null,null,null,null,null,"Annual",{"$f":"AVERAGE(L37:L48)","v":{"$error":"#DIV/0!"}},{"$f":"MAX(M37:M48)","v":0},{"$f":"AVERAGE(N37:N48)","v":{"$error":"#DIV/0!"}},{"$f":"MAX(O37:O48)","v":0}]
[]
[null,null,null,null,null,null,null,null,null,{"$f":"+A6","v":2020},"mg/Nm3","Monthly 1/2 hourly mean","Monthly 1/2 hourly maximum","Monthly daily mean","Monthly daily maximum"]
[null,null,null,null,null,null,null,null,null,"A4","Jan"]
[null,null,null,null,null,null,null,null,null,null,"Feb"]
[null,null,null,null,null,null,null,null,null,null,"Mar"]
[null,null,null,null,null,null,null,null,null,null,"Apr"]
[null,null,null,null,null,null,null,null,null,null,"May"]
[null,null,null,null,null,null,null,null,null,null,"Jun"]
[null,null,null,null,null,null,null,null,null,null,"Jul"]
[null,null,null,null,null,null,null,null,null,null,"Aug"]
[null,null,null,null,null,null,null,null,null,null,"Sep"]
[null,null,null,null,null,null,null,null,null,null,"Oct"]
[null,null,null,null,null,null,null,null,null,null,"Nov"]
[null,null,null,null,null,null,null,null,null,null,"Dec"]
[null,null,null,null,null,null,null,null,null,null,"Annual",{"$f":"AVERAGE(L52:L63)","v":{"$error":"#DIV/0!"}},{"$f":"MAX(M52:M63)","v":0},{"$f":"AVERAGE(N52:N63)","v":{"$error":"#DIV/0!"}},{"$f":"MAX(O52:O63)","v":0}]
[]
[null,null,null,null,null,null,null,null,null,{"$f":"+A6","v":2020},"mg/Nm3","Monthly 1/2 hourly mean","Monthly 1/2 hourly maximum","Monthly daily mean","Monthly daily maximum"]
[null,null,null,null,null,null,null,null,null,"A5","Jan"]
[null,null,null,null,null,null,null,null,null,null,"Feb"]
[null,null,null,null,null,null,null,null,null,null,"Mar"]
[null,null,null,null,null,null,null,null,null,null,"Apr"]
[null,null,null,null,null,null,null,null,null,null,"May"]
[null,null,null,null,null,null,null,null,null,null,"Jun"]
[null,null,null,null,null,null,null,null,null,null,"Jul"]
[null,null,null,null,null,null,null,null,null,null,"Aug"]
[null,null,null,null,null,null,null,null,null,null,"Sep"]
[null,null,null,null,null,null,null,null,null,null,"Oct"]
[null,null,null,null,null,null,null,null,null,null,"Nov"]
[null,null,null,null,null,null,null,null,null,null,"Dec"]
[null,null,null,null,null,null,null,null,null,null,"Annual",{"$f":"AVERAGE(L67:L78)","v":{"$error":"#DIV/0!"}},{"$f":"MAX(M67:M78)","v":0},{"$f":"AVERAGE(N67:N78)","v":{"$error":"#DIV/0!"}},{"$f":"MAX(O67:O78)","v":0}]

{"sheet":"NOx","index":16,"n_rows":79,"n_cols":17,"rows_kept":79,"cut":false,"hidden":false,"merged":[[3,16,7,18],[9,16,11,18],[12,16,15,18],[66,9,78,9],[4,1,4,3],[4,4,4,6],[4,9,4,14],[6,9,18,9],[21,9,33,9],[36,9,48,9],[47,0,47,6],[48,0,51,6],[51,9,63,9]]}
[{"$f":"+'Cover Page'!$B$29","v":"Annual Performance Report 2020"},null,null,null,{"$f":"+'Cover Page'!$B$33","v":"Severnside Energy Recovery Centre"}]
[]
["Monitoring of Oxides of Nitrogen emissions",null,null,"Whole Installation",null,null,"See  Notes in Cell Q3",null,null,{"$f":"+A3","v":"Monitoring of Oxides of Nitrogen emissions"},null,null,null,"Per Combustion Line",null,null,"Notes:"]
[null,null,null,null,null,null,null,null,null,null,null,null,null,null,null,null,"User to add logic to complete Whole installation, Table A5:G18. From the data in Per Combustion Line, Table J6:O79, subject to No. of lines installed"]
["mg/Nm3","1/2 Hourly Reference Periods",null,null,"Daily Reference Periods"]
[{"$f":"+'Cover Page'!C39","v":2020},"1/2 hourly NOx ELV","Monthly 1/2 hourly mean","Highest 1/2 hourly maximum","Daily NOx ELV","Monthly daily mean","Highest daily maximum",null,null,{"$f":"+A6","v":2020},"mg/Nm3","Monthly 1/2 hourly mean","Monthly 1/2 hourly maximum","Monthly daily mean","Monthly daily maximum"]
["Jan",400,{"$f":"AVERAGE(L7,L22,L37,L52,L67)","v":135},{"$f":"AVERAGE(M7,M22,M37,M52,M67)","v":176},200,{"$f":"AVERAGE(N7,N22,N37,N52,N67)","v":135},{"$f":"AVERAGE(O7,O22,O37,O52,O67)","v":136.5},null,null,"A1","Jan",135,174,135,137]
["Feb",400,{"$f":"AVERAGE(L8,L23,L38,L53,L68)","v":135},170.5,200,{"$f":"AVERAGE(N8,N23,N38,N53,N68)","v":135},137,null,null,null,"Feb",135,177,135,137]
["Mar",400,{"$f":"AVERAGE(L9,L24,L39,L54,L69)","v":135.5},182,200,{"$f":"AVERAGE(N9,N24,N39,N54,N69)","v":135.5},136.5,null,null,null,"Mar",135,173,135,137,null,"Whole Installation table A5:G18:"]
["Apr",400,{"$f":"AVERAGE(L10,L25,L40,L55,L70)","v":135.5},177,200,{"$f":"AVERAGE(N10,N25,N40,N55,N70)","v":135.5},137,null,null,null,"Apr",135,173,135,137,null,"Mean: for 1/2 hourly and daily periods calculate mean of values across all operational combustion lines for the month"]
["May",400,{"$f":"AVERAGE(L11,L26,L41,L56,L71)","v":135.5},173.5,200,{"$f":"AVERAGE(N11,N26,N41,N56,N71)","v":135.5},136.5,null,null,null,"May",135,174,135,136]
["Jun",400,{"$f":"AVERAGE(L12,L27,L42,L57,L72)","v":135},174.5,200,{"$f":"AVERAGE(N12,N27,N42,N57,N72)","v":135},137,null,null,null,"Jun",135,173,135,137]
["Jul",400,{"$f":"AVERAGE(L13,L28,L43,L58,L73)","v":136},195,200,{"$f":"AVERAGE(N13,N28,N43,N58,N73)","v":136},149.5,null,null,null,"Jul",137,202,137,149,null,"Maximum: for 1/2 hourly and daily periods use the highest value across all operational combustion lines for the month"]
["Aug",400,{"$f":"AVERAGE(L14,L29,L44,L59,L74)","v":135.5},179,200,{"$f":"AVERAGE(N14,N29,N44,N59,N74)","v":135.5},137.5,null,null,null,"Aug",136,181,136,138]
["Sep",400,{"$f":"AVERAGE(L15,L30,L45,L60,L75)","v":135},168.5,200,{"$f":"AVERAGE(N15,N30,N45,N60,N75)","v":135},136.5,null,null,null,"Sep",135,171,135,137]
["Oct",400,{"$f":"AVERAGE(L16,L31,L46,L61,L76)","v":135},174,200,{"$f":"AVERAGE(N16,N31,N46,N61,N76)","v":135},136.5,null,null,null,"Oct",135,172,135,136]
["Nov",400,{"$f":"AVERAGE(L17,L32,L47,L62,L77)","v":136},235,200,{"$f":"AVERAGE(N17,N32,N47,N62,N77)","v":136},143.5,null,null,null,"Nov",136,245,136,147]
["Dec",400,{"$f":"AVERAGE(L18,L33,L48,L63,L78)","v":135.5},228,200,{"$f":"AVERAGE(N18,N33,N48,N63,N78)","v":135.5},137,null,null,null,"Dec",135,247,135,138]
[null,null,null,null,null,null,null,null,null,null,"Annual",{"$f":"AVERAGE(L7:L18)","v":135.33333333333334},{"$f":"MAX(M7:M18)","v":247},{"$f":"AVERAGE(N7:N18)","v":135.33333333333334},{"$f":"MAX(O7:O18)","v":149}]
[]
[null,null,null,null,null,null,null,null,null,{"$f":"+A6","v":2020},"mg/Nm3","Monthly 1/2 hourly mean","Monthly 1/2 hourly maximum","Monthly daily mean","Monthly daily maximum"]
[null,null,null,null,null,null,null,null,null,"A2","Jan",135,178,135,136]
[null,null,null,null,null,null,null,null,null,null,"Feb",135,164,135,137]
[null,null,null,null,null,null,null,null,null,null,"Mar",136,191,136,136]
[null,null,null,null,null,null,null,null,null,null,"Apr",136,181,136,137]
[null,null,null,null,null,null,null,null,null,null,"May",136,173,136,137]
[null,null,null,null,null,null,null,null,null,null,"Jun",135,176,135,137]
[null,null,null,null,null,null,null,null,null,null,"Jul",135,188,135,150]
[null,null,null,null,null,null,null,null,null,null,"Aug",135,177,135,137]
[null,null,null,null,null,null,null,null,null,null,"Sep",135,166,135,136]
[null,null,null,null,null,null,null,null,null,null,"Oct",135,176,135,137]
[null,null,null,null,null,null,null,null,null,null,"Nov",136,225,136,140]
[null,null,null,null,null,null,null,null,null,null,"Dec",136,209,136,136]
[null,null,null,null,null,null,null,null,null,null,"Annual",{"$f":"AVERAGE(L22:L33)","v":135.41666666666666},{"$f":"MAX(M22:M33)","v":225},{"$f":"AVERAGE(N22:N33)","v":135.41666666666666},{"$f":"MAX(O22:O33)","v":150}]
[]
[null,null,null,null,null,null,null,null,null,{"$f":"+A6","v":2020},"mg/Nm3","Monthly 1/2 hourly mean","Monthly 1/2 hourly maximum","Monthly daily mean","Monthly daily maximum"]
[null,null,null,null,null,null,null,null,null,"A3","Jan"]
[null,null,null,null,null,null,null,null,null,null,"Feb"]
[null,null,null,null,null,null,null,null,null,null,"Mar"]
[null,null,null,null,null,null,null,null,null,null,"Apr"]
[null,null,null,null,null,null,null,null,null,null,"May"]
[null,null,null,null,null,null,null,null,null,null,"Jun"]
[null,null,null,null,null,null,null,null,null,null,"Jul"]
[null,null,null,null,null,null,null,null,null,null,"Aug"]
[null,null,null,null,null,null,null,null,null,null,"Sep"]
[null,null,null,null,null,null,null,null,null,null,"Oct"]
[null,null,null,null,null,null,null,null,null,null,"Nov"]
["Comments :",null,null,null,null,null,null,null,null,null,"Dec"]
[null,null,null,null,null,null,null,null,null,null,"Annual",{"$f":"AVERAGE(L37:L48)","v":{"$error":"#DIV/0!"}},{"$f":"MAX(M37:M48)","v":0},{"$f":"AVERAGE(N37:N48)","v":{"$error":"#DIV/0!"}},{"$f":"MAX(O37:O48)","v":0}]
[]
[null,null,null,null,null,null,null,null,null,{"$f":"+A6","v":2020},"mg/Nm3","Monthly 1/2 hourly mean","Monthly 1/2 hourly maximum","Monthly daily mean","Monthly daily maximum"]
[null,null,null,null,null,null,null,null,null,"A4","Jan"]
[null,null,null,null,null,null,null,null,null,null,"Feb"]
[null,null,null,null,null,null,null,null,null,null,"Mar"]
[null,null,null,null,null,null,null,null,null,null,"Apr"]
[null,null,null,null,null,null,null,null,null,null,"May"]
[null,null,null,null,null,null,null,null,null,null,"Jun"]
[null,null,null,null,null,null,null,null,null,null,"Jul"]
[null,null,null,null,null,null,null,null,null,null,"Aug"]
[null,null,null,null,null,null,null,null,null,null,"Sep"]
[null,null,null,null,null,null,null,null,null,null,"Oct"]
[null,null,null,null,null,null,null,null,null,null,"Nov"]
[null,null,null,null,null,null,null,null,null,null,"Dec"]
[null,null,null,null,null,null,null,null,null,null,"Annual",{"$f":"AVERAGE(L52:L63)","v":{"$error":"#DIV/0!"}},{"$f":"MAX(M52:M63)","v":0},{"$f":"AVERAGE(N52:N63)","v":{"$error":"#DIV/0!"}},{"$f":"MAX(O52:O63)","v":0}]
[]
[null,null,null,null,null,null,null,null,null,{"$f":"+A6","v":2020},"mg/Nm3","Monthly 1/2 hourly mean","Monthly 1/2 hourly maximum","Monthly daily mean","Monthly daily maximum"]
[null,null,null,null,null,null,null,null,null,"A5","Jan"]
[null,null,null,null,null,null,null,null,null,null,"Feb"]
[null,null,null,null,null,null,null,null,null,null,"Mar"]
[null,null,null,null,null,null,null,null,null,null,"Apr"]
[null,null,null,null,null,null,null,null,null,null,"May"]
[null,null,null,null,null,null,null,null,null,null,"Jun"]
[null,null,null,null,null,null,null,null,null,null,"Jul"]
[null,null,null,null,null,null,null,null,null,null,"Aug"]
[null,null,null,null,null,null,null,null,null,null,"Sep"]
[null,null,null,null,null,null,null,null,null,null,"Oct"]
[null,null,null,null,null,null,null,null,null,null,"Nov"]
[null,null,null,null,null,null,null,null,null,null,"Dec"]
[null,null,null,null,null,null,null,null,null,null,"Annual",{"$f":"AVERAGE(L67:L78)","v":{"$error":"#DIV/0!"}},{"$f":"MAX(M67:M78)","v":0},{"$f":"AVERAGE(N67:N78)","v":{"$error":"#DIV/0!"}},{"$f":"MAX(O67:O78)","v":0}]

{"sheet":"TOC","index":17,"n_rows":79,"n_cols":17,"rows_kept":79,"cut":false,"hidden":false,"merged":[[3,16,7,18],[9,16,11,18],[12,16,15,18],[66,9,78,9],[4,1,4,3],[4,4,4,6],[4,9,4,14],[6,9,18,9],[21,9,33,9],[36,9,48,9],[47,0,47,6],[48,0,51,6],[51,9,63,9]]}
[{"$f":"+'Cover Page'!$B$29","v":"Annual Performance Report 2020"},null,null,null,{"$f":"+'Cover Page'!$B$33","v":"Severnside Energy Recovery Centre"}]
[]
["Monitoring of Total organic carbon emissions",null,null,"Whole Installation",null,null,"See  Notes in Cell Q3",null,null,{"$f":"+A3","v":"Monitoring of Total organic carbon emissions"},null,null,null,"Per Combustion Line",null,null,"Notes:"]
[null,null,null,null,null,null,null,null,null,null,null,null,null,null,null,null,"User to add logic to complete Whole installation, Table A5:G18. From the data in Per Combustion Line, Table J6:O79, subject to No. of lines installed"]
["mg/Nm3","1/2 Hourly Reference Periods",null,null,"Daily Reference Periods"]
[{"$f":"+'Cover Page'!C39","v":2020},"1/2 hourly TOC ELV","Monthly 1/2 hourly mean","Highest 1/2 hourly maximum","Daily TOC ELV","Monthly daily mean","Highest daily maximum",null,null,{"$f":"+A6","v":2020},"mg/Nm3","Monthly 1/2 hourly mean","Monthly 1/2 hourly maximum","Monthly daily mean","Monthly daily maximum"]
["Jan",20,{"$f":"AVERAGE(L7,L22,L37,L52,L67)","v":0.64999999999999991},{"$f":"AVERAGE(M7,M22,M37,M52,M67)","v":4.9000000000000004},10,{"$f":"AVERAGE(N7,N22,N37,N52,N67)","v":0.64999999999999991},{"$f":"AVERAGE(O7,O22,O37,O52,O67)","v":0.8},null,null,"A1","Jan",0.6,2.6,0.6,0.7]
["Feb",20,{"$f":"AVERAGE(L8,L23,L38,L53,L68)","v":0.6},4.75,10,{"$f":"AVERAGE(N8,N23,N38,N53,N68)","v":0.6},0.7,null,null,null,"Feb",0.7,8.1,0.7,0.8]
["Mar",20,{"$f":"AVERAGE(L9,L24,L39,L54,L69)","v":0.7},7.8,10,{"$f":"AVERAGE(N9,N24,N39,N54,N69)","v":0.7},2.0499999999999998,null,null,null,"Mar",0.8,11.1,0.8,3.4,null,"Whole Installation table A5:G18:"]
["Apr",20,{"$f":"AVERAGE(L10,L25,L40,L55,L70)","v":0},3,10,{"$f":"AVERAGE(N10,N25,N40,N55,N70)","v":0},1,null,null,null,"Apr",0,3,0,1,null,"Mean: for 1/2 hourly and daily periods calculate mean of values across all operational combustion lines for the month"]
["May",20,{"$f":"AVERAGE(L11,L26,L41,L56,L71)","v":0},1,10,{"$f":"AVERAGE(N11,N26,N41,N56,N71)","v":0},0.5,null,null,null,"May",0,1,0,1]
["Jun",20,{"$f":"AVERAGE(L12,L27,L42,L57,L72)","v":0},4.5,10,{"$f":"AVERAGE(N12,N27,N42,N57,N72)","v":0},0.5,null,null,null,"Jun",0,2,0,0]
["Jul",20,{"$f":"AVERAGE(L13,L28,L43,L58,L73)","v":0.3},0.95,10,{"$f":"AVERAGE(N13,N28,N43,N58,N73)","v":0.3},0.4,null,null,null,"Jul",0.3,0.9,0.3,0.4,null,"Maximum: for 1/2 hourly and daily periods use the highest value across all operational combustion lines for the month"]
["Aug",20,{"$f":"AVERAGE(L14,L29,L44,L59,L74)","v":0.25},1.35,10,{"$f":"AVERAGE(N14,N29,N44,N59,N74)","v":0.25},0.35,null,null,null,"Aug",0.3,1.4,0.3,0.4]
["Sep",20,{"$f":"AVERAGE(L15,L30,L45,L60,L75)","v":0.25},0.7,10,{"$f":"AVERAGE(N15,N30,N45,N60,N75)","v":0.25},0.35,null,null,null,"Sep",0.3,0.9,0.3,0.4]
["Oct",20,{"$f":"AVERAGE(L16,L31,L46,L61,L76)","v":0.25},2.8499999999999996,10,{"$f":"AVERAGE(N16,N31,N46,N61,N76)","v":0.25},0.35,null,null,null,"Oct",0.3,1.9,0.3,0.4]
["Nov",20,{"$f":"AVERAGE(L17,L32,L47,L62,L77)","v":0.25},3.0500000000000003,10,{"$f":"AVERAGE(N17,N32,N47,N62,N77)","v":0.25},0.55000000000000004,null,null,null,"Nov",0.2,1.2,0.2,0.5]
["Dec",20,{"$f":"AVERAGE(L18,L33,L48,L63,L78)","v":0.4},6.15,10,{"$f":"AVERAGE(N18,N33,N48,N63,N78)","v":0.4},0.5,null,null,null,"Dec",0.4,7.5,0.4,0.5]
[null,null,null,null,null,null,null,null,null,null,"Annual",{"$f":"AVERAGE(L7:L18)","v":0.3249999999999999},{"$f":"MAX(M7:M18)","v":11.1},{"$f":"AVERAGE(N7:N18)","v":0.3249999999999999},{"$f":"MAX(O7:O18)","v":3.4}]
[]
[null,null,null,null,null,null,null,null,null,{"$f":"+A6","v":2020},"mg/Nm3","Monthly 1/2 hourly mean","Monthly 1/2 hourly maximum","Monthly daily mean","Monthly daily maximum"]
[null,null,null,null,null,null,null,null,null,"A2","Jan",0.7,7.2,0.7,0.9]
[null,null,null,null,null,null,null,null,null,null,"Feb",0.5,1.4,0.5,0.6]
[null,null,null,null,null,null,null,null,null,null,"Mar",0.6,4.5,0.6,0.7]
[null,null,null,null,null,null,null,null,null,null,"Apr",0,3,0,1]
[null,null,null,null,null,null,null,null,null,null,"May",0,1,0,0]
[null,null,null,null,null,null,null,null,null,null,"Jun",0,7,0,1]
[null,null,null,null,null,null,null,null,null,null,"Jul",0.3,1,0.3,0.4]
[null,null,null,null,null,null,null,null,null,null,"Aug",0.2,1.3,0.2,0.3]
[null,null,null,null,null,null,null,null,null,null,"Sep",0.2,0.5,0.2,0.3]
[null,null,null,null,null,null,null,null,null,null,"Oct",0.2,3.8,0.2,0.3]
[null,null,null,null,null,null,null,null,null,null,"Nov",0.3,4.9000000000000004,0.3,0.6]
[null,null,null,null,null,null,null,null,null,null,"Dec",0.4,4.8,0.4,0.5]
[null,null,null,null,null,null,null,null,null,null,"Annual",{"$f":"AVERAGE(L22:L33)","v":0.28333333333333333},{"$f":"MAX(M22:M33)","v":7.2},{"$f":"AVERAGE(N22:N33)","v":0.28333333333333333},{"$f":"MAX(O22:O33)","v":1}]
[]
[null,null,null,null,null,null,null,null,null,{"$f":"+A6","v":2020},"mg/Nm3","Monthly 1/2 hourly mean","Monthly 1/2 hourly maximum","Monthly daily mean","Monthly daily maximum"]
[null,null,null,null,null,null,null,null,null,"A3","Jan"]
[null,null,null,null,null,null,null,null,null,null,"Feb"]
[null,null,null,null,null,null,null,null,null,null,"Mar"]
[null,null,null,null,null,null,null,null,null,null,"Apr"]
[null,null,null,null,null,null,null,null,null,null,"May"]
[null,null,null,null,null,null,null,null,null,null,"Jun"]
[null,null,null,null,null,null,null,null,null,null,"Jul"]
[null,null,null,null,null,null,null,null,null,null,"Aug"]
[null,null,null,null,null,null,null,null,null,null,"Sep"]
[null,null,null,null,null,null,null,null,null,null,"Oct"]
[null,null,null,null,null,null,null,null,null,null,"Nov"]
["Comments :",null,null,null,null,null,null,null,null,null,"Dec"]
[null,null,null,null,null,null,null,null,null,null,"Annual",{"$f":"AVERAGE(L37:L48)","v":{"$error":"#DIV/0!"}},{"$f":"MAX(M37:M48)","v":0},{"$f":"AVERAGE(N37:N48)","v":{"$error":"#DIV/0!"}},{"$f":"MAX(O37:O48)","v":0}]
[]
[null,null,null,null,null,null,null,null,null,{"$f":"+A6","v":2020},"mg/Nm3","Monthly 1/2 hourly mean","Monthly 1/2 hourly maximum","Monthly daily mean","Monthly daily maximum"]
[null,null,null,null,null,null,null,null,null,"A4","Jan"]
[null,null,null,null,null,null,null,null,null,null,"Feb"]
[null,null,null,null,null,null,null,null,null,null,"Mar"]
[null,null,null,null,null,null,null,null,null,null,"Apr"]
[null,null,null,null,null,null,null,null,null,null,"May"]
[null,null,null,null,null,null,null,null,null,null,"Jun"]
[null,null,null,null,null,null,null,null,null,null,"Jul"]
[null,null,null,null,null,null,null,null,null,null,"Aug"]
[null,null,null,null,null,null,null,null,null,null,"Sep"]
[null,null,null,null,null,null,null,null,null,null,"Oct"]
[null,null,null,null,null,null,null,null,null,null,"Nov"]
[null,null,null,null,null,null,null,null,null,null,"Dec"]
[null,null,null,null,null,null,null,null,null,null,"Annual",{"$f":"AVERAGE(L52:L63)","v":{"$error":"#DIV/0!"}},{"$f":"MAX(M52:M63)","v":0},{"$f":"AVERAGE(N52:N63)","v":{"$error":"#DIV/0!"}},{"$f":"MAX(O52:O63)","v":0}]
[]
[null,null,null,null,null,null,null,null,null,{"$f":"+A6","v":2020},"mg/Nm3","Monthly 1/2 hourly mean","Monthly 1/2 hourly maximum","Monthly daily mean","Monthly daily maximum"]
[null,null,null,null,null,null,null,null,null,"A5","Jan"]
[null,null,null,null,null,null,null,null,null,null,"Feb"]
[null,null,null,null,null,null,null,null,null,null,"Mar"]
[null,null,null,null,null,null,null,null,null,null,"Apr"]
[null,null,null,null,null,null,null,null,null,null,"May"]
[null,null,null,null,null,null,null,null,null,null,"Jun"]
[null,null,null,null,null,null,null,null,null,null,"Jul"]
[null,null,null,null,null,null,null,null,null,null,"Aug"]
[null,null,null,null,null,null,null,null,null,null,"Sep"]
[null,null,null,null,null,null,null,null,null,null,"Oct"]
[null,null,null,null,null,null,null,null,null,null,"Nov"]
[null,null,null,null,null,null,null,null,null,null,"Dec"]
[null,null,null,null,null,null,null,null,null,null,"Annual",{"$f":"AVERAGE(L67:L78)","v":{"$error":"#DIV/0!"}},{"$f":"MAX(M67:M78)","v":0},{"$f":"AVERAGE(N67:N78)","v":{"$error":"#DIV/0!"}},{"$f":"MAX(O67:O78)","v":0}]

{"sheet":"Particulates","index":18,"n_rows":79,"n_cols":17,"rows_kept":79,"cut":false,"hidden":false,"merged":[[3,16,7,18],[9,16,11,18],[12,16,15,18],[66,9,78,9],[4,1,4,3],[4,4,4,6],[4,9,4,14],[6,9,18,9],[21,9,33,9],[36,9,48,9],[47,0,47,6],[48,0,51,6],[51,9,63,9]]}
[{"$f":"+'Cover Page'!$B$29","v":"Annual Performance Report 2020"},null,null,null,{"$f":"+'Cover Page'!$B$33","v":"Severnside Energy Recovery Centre"}]
[]
["Monitoring of Particulate matter emissions",null,null,"Whole Installation",null,null,"See  Notes in Cell Q3",null,null,{"$f":"+A3","v":"Monitoring of Particulate matter emissions"},null,null,null,"Per Combustion Line",null,null,"Notes:"]
[null,null,null,null,null,null,null,null,null,null,null,null,null,null,null,null,"User to add logic to complete Whole installation, Table A5:G18. From the data in Per Combustion Line, Table J6:O79, subject to No. of lines installed"]
["mg/Nm3","1/2 Hourly Reference Periods",null,null,"Daily Reference Periods"]
[{"$f":"+'Cover Page'!C39","v":2020},"1/2 hourly PM ELV","Monthly 1/2 hourly mean","Highest 1/2 hourly maximum","Daily PM ELV","Monthly daily mean","Highest daily maximum",null,null,{"$f":"+A6","v":2020},"mg/Nm3","Monthly 1/2 hourly mean","Monthly 1/2 hourly maximum","Monthly daily mean","Monthly daily maximum"]
["Jan",30,{"$f":"AVERAGE(L7,L22,L37,L52,L67)","v":3.6500000000000004},{"$f":"AVERAGE(M7,M22,M37,M52,M67)","v":9.3000000000000007},10,{"$f":"AVERAGE(N7,N22,N37,N52,N67)","v":3.6500000000000004},{"$f":"AVERAGE(O7,O22,O37,O52,O67)","v":5.0999999999999996},null,null,"A1","Jan",4.7,10.9,4.7,6.6]
["Feb",30,{"$f":"AVERAGE(L8,L23,L38,L53,L68)","v":4.3499999999999996},9.6999999999999993,10,{"$f":"AVERAGE(N8,N23,N38,N53,N68)","v":4.3499999999999996},6,null,null,null,"Feb",4.8,12.4,4.8,6.7]
["Mar",30,{"$f":"AVERAGE(L9,L24,L39,L54,L69)","v":4.1500000000000004},18.5,10,{"$f":"AVERAGE(N9,N24,N39,N54,N69)","v":4.1500000000000004},7.15,null,null,null,"Mar",4.8,23.9,4.8,8.8000000000000007,null,"Whole Installation table A5:G18:"]
["Apr",30,{"$f":"AVERAGE(L10,L25,L40,L55,L70)","v":3.5},32,10,{"$f":"AVERAGE(N10,N25,N40,N55,N70)","v":3.5},8.5,null,null,null,"Apr",3,51,3,9,null,"Mean: for 1/2 hourly and daily periods calculate mean of values across all operational combustion lines for the month"]
["May",30,{"$f":"AVERAGE(L11,L26,L41,L56,L71)","v":2.5},4,10,{"$f":"AVERAGE(N11,N26,N41,N56,N71)","v":2.5},3,null,null,null,"May",2,3,2,2]
["Jun",30,{"$f":"AVERAGE(L12,L27,L42,L57,L72)","v":2.5},5.5,10,{"$f":"AVERAGE(N12,N27,N42,N57,N72)","v":2.5},3.5,null,null,null,"Jun",2,2,2,2]
["Jul",30,{"$f":"AVERAGE(L13,L28,L43,L58,L73)","v":1.8},17.850000000000001,10,{"$f":"AVERAGE(N13,N28,N43,N58,N73)","v":1.8},3.6500000000000004,null,null,null,"Jul",1.6,2,1.6,1.9,null,"Maximum: for 1/2 hourly and daily periods use the highest value across all operational combustion lines for the month"]
["Aug",30,{"$f":"AVERAGE(L14,L29,L44,L59,L74)","v":1.1499999999999999},1.65,10,{"$f":"AVERAGE(N14,N29,N44,N59,N74)","v":1.1499999999999999},1.3,null,null,null,"Aug",1.6,2.2999999999999998,1.6,1.8]
["Sep",30,{"$f":"AVERAGE(L15,L30,L45,L60,L75)","v":1.35},1.95,10,{"$f":"AVERAGE(N15,N30,N45,N60,N75)","v":1.35},1.55,null,null,null,"Sep",1.9,2.8,1.9,2.2000000000000002]
["Oct",30,{"$f":"AVERAGE(L16,L31,L46,L61,L76)","v":1.4500000000000002},2.0499999999999998,10,{"$f":"AVERAGE(N16,N31,N46,N61,N76)","v":1.4500000000000002},1.75,null,null,null,"Oct",2.1,2.9,2.1,2.5]
["Nov",30,{"$f":"AVERAGE(L17,L32,L47,L62,L77)","v":2.3000000000000003},17.150000000000002,10,{"$f":"AVERAGE(N17,N32,N47,N62,N77)","v":2.3000000000000003},3.95,null,null,null,"Nov",3.7,32.1,3.7,6.5]
["Dec",30,{"$f":"AVERAGE(L18,L33,L48,L63,L78)","v":2.1},8.35,10,{"$f":"AVERAGE(N18,N33,N48,N63,N78)","v":2.1},5.3,null,null,null,"Dec",3,6.8,3,5]
[null,null,null,null,null,null,null,null,null,null,"Annual",{"$f":"AVERAGE(L7:L18)","v":2.9333333333333336},{"$f":"MAX(M7:M18)","v":51},{"$f":"AVERAGE(N7:N18)","v":2.9333333333333336},{"$f":"MAX(O7:O18)","v":9}]
[]
[null,null,null,null,null,null,null,null,null,{"$f":"+A6","v":2020},"mg/Nm3","Monthly 1/2 hourly mean","Monthly 1/2 hourly maximum","Monthly daily mean","Monthly daily maximum"]
[null,null,null,null,null,null,null,null,null,"A2","Jan",2.6,7.7,2.6,3.6]
[null,null,null,null,null,null,null,null,null,null,"Feb",3.9,7,3.9,5.3]
[null,null,null,null,null,null,null,null,null,null,"Mar",3.5,13.1,3.5,5.5]
[null,null,null,null,null,null,null,null,null,null,"Apr",4,13,4,8]
[null,null,null,null,null,null,null,null,null,null,"May",3,5,3,4]
[null,null,null,null,null,null,null,null,null,null,"Jun",3,9,3,5]
[null,null,null,null,null,null,null,null,null,null,"Jul",2,33.700000000000003,2,5.4]
[null,null,null,null,null,null,null,null,null,null,"Aug",0.7,1,0.7,0.8]
[null,null,null,null,null,null,null,null,null,null,"Sep",0.8,1.1000000000000001,0.8,0.9]
[null,null,null,null,null,null,null,null,null,null,"Oct",0.8,1.2,0.8,1]
[null,null,null,null,null,null,null,null,null,null,"Nov",0.9,2.2000000000000002,0.9,1.4]
[null,null,null,null,null,null,null,null,null,null,"Dec",1.2,9.9,1.2,5.6]
[null,null,null,null,null,null,null,null,null,null,"Annual",{"$f":"AVERAGE(L22:L33)","v":2.1999999999999997},{"$f":"MAX(M22:M33)","v":33.700000000000003},{"$f":"AVERAGE(N22:N33)","v":2.1999999999999997},{"$f":"MAX(O22:O33)","v":8}]
[]
[null,null,null,null,null,null,null,null,null,{"$f":"+A6","v":2020},"mg/Nm3","Monthly 1/2 hourly mean","Monthly 1/2 hourly maximum","Monthly daily mean","Monthly daily maximum"]
[null,null,null,null,null,null,null,null,null,"A3","Jan"]
[null,null,null,null,null,null,null,null,null,null,"Feb"]
[null,null,null,null,null,null,null,null,null,null,"Mar"]
[null,null,null,null,null,null,null,null,null,null,"Apr"]
[null,null,null,null,null,null,null,null,null,null,"May"]
[null,null,null,null,null,null,null,null,null,null,"Jun"]
[null,null,null,null,null,null,null,null,null,null,"Jul"]
[null,null,null,null,null,null,null,null,null,null,"Aug"]
[null,null,null,null,null,null,null,null,null,null,"Sep"]
[null,null,null,null,null,null,null,null,null,null,"Oct"]
[null,null,null,null,null,null,null,null,null,null,"Nov"]
["Comments :",null,null,null,null,null,null,null,null,null,"Dec"]
[null,null,null,null,null,null,null,null,null,null,"Annual",{"$f":"AVERAGE(L37:L48)","v":{"$error":"#DIV/0!"}},{"$f":"MAX(M37:M48)","v":0},{"$f":"AVERAGE(N37:N48)","v":{"$error":"#DIV/0!"}},{"$f":"MAX(O37:O48)","v":0}]
[]
[null,null,null,null,null,null,null,null,null,{"$f":"+A6","v":2020},"mg/Nm3","Monthly 1/2 hourly mean","Monthly 1/2 hourly maximum","Monthly daily mean","Monthly daily maximum"]
[null,null,null,null,null,null,null,null,null,"A4","Jan"]
[null,null,null,null,null,null,null,null,null,null,"Feb"]
[null,null,null,null,null,null,null,null,null,null,"Mar"]
[null,null,null,null,null,null,null,null,null,null,"Apr"]
[null,null,null,null,null,null,null,null,null,null,"May"]
[null,null,null,null,null,null,null,null,null,null,"Jun"]
[null,null,null,null,null,null,null,null,null,null,"Jul"]
[null,null,null,null,null,null,null,null,null,null,"Aug"]
[null,null,null,null,null,null,null,null,null,null,"Sep"]
[null,null,null,null,null,null,null,null,null,null,"Oct"]
[null,null,null,null,null,null,null,null,null,null,"Nov"]
[null,null,null,null,null,null,null,null,null,null,"Dec"]
[null,null,null,null,null,null,null,null,null,null,"Annual",{"$f":"AVERAGE(L52:L63)","v":{"$error":"#DIV/0!"}},{"$f":"MAX(M52:M63)","v":0},{"$f":"AVERAGE(N52:N63)","v":{"$error":"#DIV/0!"}},{"$f":"MAX(O52:O63)","v":0}]
[]
[null,null,null,null,null,null,null,null,null,{"$f":"+A6","v":2020},"mg/Nm3","Monthly 1/2 hourly mean","Monthly 1/2 hourly maximum","Monthly daily mean","Monthly daily maximum"]
[null,null,null,null,null,null,null,null,null,"A5","Jan"]
[null,null,null,null,null,null,null,null,null,null,"Feb"]
[null,null,null,null,null,null,null,null,null,null,"Mar"]
[null,null,null,null,null,null,null,null,null,null,"Apr"]
[null,null,null,null,null,null,null,null,null,null,"May"]
[null,null,null,null,null,null,null,null,null,null,"Jun"]
[null,null,null,null,null,null,null,null,null,null,"Jul"]
[null,null,null,null,null,null,null,null,null,null,"Aug"]
[null,null,null,null,null,null,null,null,null,null,"Sep"]
[null,null,null,null,null,null,null,null,null,null,"Oct"]
[null,null,null,null,null,null,null,null,null,null,"Nov"]
[null,null,null,null,null,null,null,null,null,null,"Dec"]
[null,null,null,null,null,null,null,null,null,null,"Annual",{"$f":"AVERAGE(L67:L78)","v":{"$error":"#DIV/0!"}},{"$f":"MAX(M67:M78)","v":0},{"$f":"AVERAGE(N67:N78)","v":{"$error":"#DIV/0!"}},{"$f":"MAX(O67:O78)","v":0}]

{"sheet":"CO 95% 10 min","index":19,"n_rows":79,"n_cols":19,"rows_kept":79,"cut":false,"hidden":false,"merged":[[3,18,7,20],[9,18,11,20],[12,18,15,20],[66,10,78,10],[4,1,4,4],[4,5,4,7],[4,10,4,16],[6,10,18,10],[21,10,33,10],[36,10,48,10],[47,0,47,7],[48,0,51,7],[51,10,63,10]]}
[{"$f":"+'Cover Page'!$B$29","v":"Annual Performance Report 2020"},null,null,null,{"$f":"+'Cover Page'!$B$33","v":"Severnside Energy Recovery Centre"}]
[]
["Monitoring of Carbon Monoxide (10-minute avg)",null,null,null,"Whole Installation",null,null,"See  Notes in Cell S3",null,{"$f":"+A3","v":"Monitoring of Carbon Monoxide (10-minute avg)"},null,null,null,null,"Per Combustion Line",null,"Notes:",null,"Notes:"]
[null,null,null,null,null,null,null,null,null,null,null,null,null,null,null,null,null,null,"User to add logic to complete Whole installation, Table A5:H18. From the data in Per Combustion Line, Table K6:Q79, subject to No. of lines installed"]
["mg/Nm3","10-minute Reference Periods",null,null,null,"Daily Reference Periods"]
[{"$f":"+'Cover Page'!C39","v":2020},"95%ile 10-min avg CO ELV","95%ile 10-min avg maximum","Monthly CO 10-min avg mean","10-min avg maximum","Daily CO ELV","Monthly daily mean","Highest daily maximum",null,null,{"$f":"+A6","v":2020},"mg/Nm3","95%ile 10-min avg maximum","Monthly CO 10-min avg mean","10-min avg maximum","Monthly daily mean","Monthly daily maximum"]
["Jan",150,{"$f":"AVERAGE(M7,M22,M37,M52,M67)","v":11.67},{"$f":"AVERAGE(N7,N22,N37,N52,N67)","v":5.5},{"$f":"MAX(O7,O22,O37,O52,O67)","v":711},50,{"$f":"AVERAGE(P7,P22,P37,P52,P67)","v":5.5},{"$f":"AVERAGE(Q7,Q22,Q37,Q52,Q67)","v":7.5},null,null,"A1","Jan",13.67,6,418,6,9]
["Feb",{"$f":"+B7","v":150},{"$f":"AVERAGE(M8,M23,M38,M53,M68)","v":11.434999999999999},6,{"$f":"MAX(O8,O23,O38,O53,O68)","v":863},{"$f":"+F7","v":50},{"$f":"AVERAGE(P8,P23,P38,P53,P68)","v":6},10.5,null,null,null,"Feb",13.34,7,863,7,15]
["Mar",{"$f":"+B8","v":150},{"$f":"AVERAGE(M9,M24,M39,M54,M69)","v":11.295},6.5,262,{"$f":"+F8","v":50},{"$f":"AVERAGE(P9,P24,P39,P54,P69)","v":6.5},8.5,null,null,null,"Mar",12.93,8,262,8,11,null,"Whole Installation table A5:H18:"]
["Apr",150,{"$f":"AVERAGE(M10,M25,M40,M55,M70)","v":87.52000000000001},6,666,50,{"$f":"AVERAGE(P10,P25,P40,P55,P70)","v":6},8.2349999999999994,null,null,null,"Apr",14.18,6,666,6,10,null,"Mean: for 10-min and daily periods use average of all operational combustion lines."]
["May",150,{"$f":"AVERAGE(M11,M26,M41,M56,M71)","v":9.495000000000001},4.5,36,50,{"$f":"AVERAGE(P11,P26,P41,P56,P71)","v":4.5},6,null,null,null,"May",10.43,5,27,5,7]
["Jun",150,{"$f":"AVERAGE(M12,M27,M42,M57,M72)","v":10.535},5,365,50,{"$f":"AVERAGE(P12,P27,P42,P57,P72)","v":5},6,null,null,null,"Jun",10.5,6,13,6,7]
["Jul",150,{"$f":"AVERAGE(M13,M28,M43,M58,M73)","v":8.99},5,19,50,{"$f":"AVERAGE(P13,P28,P43,P58,P73)","v":5},5.5,null,null,null,"Jul",9.8000000000000007,6,14,6,6,null,"Maximum: for 10-min and daily periods use the highest of all operational combustion lines in any month."]
["Aug",150,{"$f":"AVERAGE(M14,M29,M44,M59,M74)","v":9.09},5,429,50,{"$f":"AVERAGE(P14,P29,P44,P59,P74)","v":5},7,null,null,null,"Aug",10.51,6,429,6,9]
["Sep",150,{"$f":"AVERAGE(M15,M30,M45,M60,M75)","v":9.7850000000000001},5,103,50,{"$f":"AVERAGE(P15,P30,P45,P60,P75)","v":5},6,null,null,null,"Sep",11.05,6,103,6,7]
["Oct",150,{"$f":"AVERAGE(M16,M31,M46,M61,M76)","v":10.190000000000001},5.5,701,50,{"$f":"AVERAGE(P16,P31,P46,P61,P76)","v":5.5},7,null,null,null,"Oct",10.88,6,163,6,8]
["Nov",150,{"$f":"AVERAGE(M17,M32,M47,M62,M77)","v":10.015000000000001},6,168,50,{"$f":"AVERAGE(P17,P32,P47,P62,P77)","v":6},6.5,null,null,null,"Nov",10.7,7,130,7,7]
["Dec",150,{"$f":"AVERAGE(M18,M33,M48,M63,M78)","v":11.045},6.5,641,50,{"$f":"AVERAGE(P18,P33,P48,P63,P78)","v":6.5},9,null,null,null,"Dec",12.17,7,50,7,8]
[null,null,null,null,null,null,null,null,null,null,null,"Annual",{"$f":"AVERAGE(M7:M18)","v":11.68},{"$f":"AVERAGE(N7:N18)","v":6.333333333333333},{"$f":"MAX(O7:O18)","v":863},{"$f":"AVERAGE(P7:P18)","v":6.333333333333333},{"$f":"MAX(Q7:Q18)","v":15}]
[]
[null,null,null,null,null,null,null,null,null,null,{"$f":"+A6","v":2020},"mg/Nm3","95%ile 10-min avg maximum","Monthly CO 10-min avg mean","10-min avg maximum","Monthly daily mean","Monthly daily maximum"]
[null,null,null,null,null,null,null,null,null,null,"A2","Jan",9.67,5,711,5,6]
[null,null,null,null,null,null,null,null,null,null,null,"Feb",9.5299999999999994,5,80,5,6]
[null,null,null,null,null,null,null,null,null,null,null,"Mar",9.66,5,25,5,6]
[null,null,null,null,null,null,null,null,null,null,null,"Apr",160.86000000000001,6,431,6,6.47]
[null,null,null,null,null,null,null,null,null,null,null,"May",8.56,4,36,4,5]
[null,null,null,null,null,null,null,null,null,null,null,"Jun",10.57,4,365,4,5]
[null,null,null,null,null,null,null,null,null,null,null,"Jul",8.18,4,19,4,5]
[null,null,null,null,null,null,null,null,null,null,null,"Aug",7.67,4,10,4,5]
[null,null,null,null,null,null,null,null,null,null,null,"Sep",8.52,4,52,4,5]
[null,null,null,null,null,null,null,null,null,null,null,"Oct",9.5,5,701,5,6]
[null,null,null,null,null,null,null,null,null,null,null,"Nov",9.33,5,168,5,6]
[null,null,null,null,null,null,null,null,null,null,null,"Dec",9.92,6,641,6,10]
[null,null,null,null,null,null,null,null,null,null,null,"Annual",{"$f":"AVERAGE(M22:M33)","v":21.830833333333334},{"$f":"AVERAGE(N22:N33)","v":4.75},{"$f":"MAX(O22:O33)","v":711},{"$f":"AVERAGE(P22:P33)","v":4.75},{"$f":"MAX(Q22:Q33)","v":10}]
[]
[null,null,null,null,null,null,null,null,null,null,{"$f":"+A6","v":2020},"mg/Nm3","95%ile 10-min avg maximum","Monthly CO 10-min avg mean","10-min avg maximum","Monthly daily mean","Monthly daily maximum"]
[null,null,null,null,null,null,null,null,null,null,"A3","Jan"]
[null,null,null,null,null,null,null,null,null,null,null,"Feb"]
[null,null,null,null,null,null,null,null,null,null,null,"Mar"]
[null,null,null,null,null,null,null,null,null,null,null,"Apr"]
[null,null,null,null,null,null,null,null,null,null,null,"May"]
[null,null,null,null,null,null,null,null,null,null,null,"Jun"]
[null,null,null,null,null,null,null,null,null,null,null,"Jul"]
[null,null,null,null,null,null,null,null,null,null,null,"Aug"]
[null,null,null,null,null,null,null,null,null,null,null,"Sep"]
[null,null,null,null,null,null,null,null,null,null,null,"Oct"]
[null,null,null,null,null,null,null,null,null,null,null,"Nov"]
["Comments :",null,null,null,null,null,null,null,null,null,null,"Dec"]
["Environment Agency explanatory note: The 10-minute average ELV is based on the “95th percentile”. In this case this means that 95% of the 10 minute averages in the relevant 24-hour period (i.e. 137) must be below 150 mg/Nm3, and 5% (i.e. 7) are allowed to be any value above 150 mg/Nm3. Whilst we expect operators to minimise CO emissions at all times, it is perfectly acceptable for the value of the maximum 10-minute average to be above 150 mg/Nm3, provided the 95th percentile ELV has been met for that period. ",null,null,null,null,null,null,null,null,null,null,"Annual",{"$f":"AVERAGE(M37:M48)","v":{"$error":"#DIV/0!"}},null,{"$f":"MAX(O37:O48)","v":0},{"$f":"AVERAGE(P37:P48)","v":{"$error":"#DIV/0!"}},{"$f":"MAX(Q37:Q48)","v":0}]
[]
[null,null,null,null,null,null,null,null,null,null,{"$f":"+A6","v":2020},"mg/Nm3","95%ile 10-min avg maximum","Monthly CO 10-min avg mean","10-min avg maximum","Monthly daily mean","Monthly daily maximum"]
[null,null,null,null,null,null,null,null,null,null,"A4","Jan"]
[null,null,null,null,null,null,null,null,null,null,null,"Feb"]
[null,null,null,null,null,null,null,null,null,null,null,"Mar"]
[null,null,null,null,null,null,null,null,null,null,null,"Apr"]
[null,null,null,null,null,null,null,null,null,null,null,"May"]
[null,null,null,null,null,null,null,null,null,null,null,"Jun"]
[null,null,null,null,null,null,null,null,null,null,null,"Jul"]
[null,null,null,null,null,null,null,null,null,null,null,"Aug"]
[null,null,null,null,null,null,null,null,null,null,null,"Sep"]
[null,null,null,null,null,null,null,null,null,null,null,"Oct"]
[null,null,null,null,null,null,null,null,null,null,null,"Nov"]
[null,null,null,null,null,null,null,null,null,null,null,"Dec"]
[null,null,null,null,null,null,null,null,null,null,null,"Annual",{"$f":"AVERAGE(M52:M63)","v":{"$error":"#DIV/0!"}},null,{"$f":"MAX(O52:O63)","v":0},{"$f":"AVERAGE(P52:P63)","v":{"$error":"#DIV/0!"}},{"$f":"MAX(Q52:Q63)","v":0}]
[]
[null,null,null,null,null,null,null,null,null,null,{"$f":"+A6","v":2020},"mg/Nm3","95%ile 10-min avg maximum","Monthly CO 10-min avg mean","10-min avg maximum","Monthly daily mean","Monthly daily maximum"]
[null,null,null,null,null,null,null,null,null,null,"A5","Jan"]
[null,null,null,null,null,null,null,null,null,null,null,"Feb"]
[null,null,null,null,null,null,null,null,null,null,null,"Mar"]
[null,null,null,null,null,null,null,null,null,null,null,"Apr"]
[null,null,null,null,null,null,null,null,null,null,null,"May"]
[null,null,null,null,null,null,null,null,null,null,null,"Jun"]
[null,null,null,null,null,null,null,null,null,null,null,"Jul"]
[null,null,null,null,null,null,null,null,null,null,null,"Aug"]
[null,null,null,null,null,null,null,null,null,null,null,"Sep"]
[null,null,null,null,null,null,null,null,null,null,null,"Oct"]
[null,null,null,null,null,null,null,null,null,null,null,"Nov"]
[null,null,null,null,null,null,null,null,null,null,null,"Dec"]
[null,null,null,null,null,null,null,null,null,null,null,"Annual",{"$f":"AVERAGE(M67:M78)","v":{"$error":"#DIV/0!"}},null,{"$f":"MAX(O67:O78)","v":0},{"$f":"AVERAGE(P67:P78)","v":{"$error":"#DIV/0!"}},{"$f":"MAX(Q67:Q78)","v":0}]

{"sheet":"NH3","index":20,"n_rows":79,"n_cols":17,"rows_kept":79,"cut":false,"hidden":false,"merged":[[3,16,7,18],[9,16,11,18],[12,16,15,18],[66,9,78,9],[4,1,4,3],[4,4,4,6],[4,9,4,14],[6,9,18,9],[21,9,33,9],[36,9,48,9],[47,0,47,6],[48,0,51,6],[51,9,63,9]]}
[{"$f":"+'Cover Page'!$B$29","v":"Annual Performance Report 2020"},null,null,null,{"$f":"+'Cover Page'!$B$33","v":"Severnside Energy Recovery Centre"}]
[]
["Monitoring of Ammnonia emissions ",null,null,"Whole Installation",null,null,"See  Notes in Cell Q3",null,null,{"$f":"+A3","v":"Monitoring of Ammnonia emissions "},null,null,null,"Per Combustion Line",null,null,"Notes:"]
[null,null,null,null,null,null,null,null,null,null,null,null,null,null,null,null,"User to add logic to complete Whole installation, Table A5:G18. From the data in Per Combustion Line, Table J6:O79, subject to No. of lines installed"]
["mg/Nm3","1/2 Hourly Reference Periods",null,null,"Daily Reference Periods"]
[{"$f":"+'Cover Page'!C39","v":2020},"1/2 hourly NH3 ELV","Monthly 1/2 hourly mean","Highest 1/2 hourly maximum","Daily NH3 ELV","Monthly daily mean","Highest daily maximum",null,null,{"$f":"+A6","v":2020},"mg/Nm3","Monthly 1/2 hourly mean","Monthly 1/2 hourly maximum","Monthly daily mean","Monthly daily maximum"]
["Jan",0,{"$f":"AVERAGE(L7,L22,L37,L52,L67)","v":0.35},{"$f":"AVERAGE(M7,M22,M37,M52,M67)","v":2.5},10,{"$f":"AVERAGE(N7,N22,N37,N52,N67)","v":0.35},{"$f":"AVERAGE(O7,O22,O37,O52,O67)","v":0.75},null,null,"A1","Jan",0.6,2.2999999999999998,0.6,1.3]
["Feb",{"$f":"+B7","v":0},{"$f":"AVERAGE(L8,L23,L38,L53,L68)","v":0.35},2.4500000000000002,{"$f":"+E7","v":10},{"$f":"AVERAGE(N8,N23,N38,N53,N68)","v":0.35},0.60000000000000009,null,null,null,"Feb",0.5,3.2,0.5,0.8]
["Mar",{"$f":"+B8","v":0},{"$f":"AVERAGE(L9,L24,L39,L54,L69)","v":0.44999999999999996},9.35,{"$f":"+E8","v":10},{"$f":"AVERAGE(N9,N24,N39,N54,N69)","v":0.44999999999999996},1.05,null,null,null,"Mar",0.7,7.3,0.7,1.7,null,"Whole Installation table A5:G18:"]
["Apr",0,{"$f":"AVERAGE(L10,L25,L40,L55,L70)","v":0.5},2.5,10,{"$f":"AVERAGE(N10,N25,N40,N55,N70)","v":0.5},1,null,null,null,"Apr",1,4,1,1,null,"Mean: for 1/2 hourly and daily periods calculate mean of values across all operational combustion lines for the month"]
["May",0,{"$f":"AVERAGE(L11,L26,L41,L56,L71)","v":0.5},5.5,10,{"$f":"AVERAGE(N11,N26,N41,N56,N71)","v":0.5},0.5,null,null,null,"May",1,10,1,1]
["Jun",0,{"$f":"AVERAGE(L12,L27,L42,L57,L72)","v":0.5},6,10,{"$f":"AVERAGE(N12,N27,N42,N57,N72)","v":0.5},0.5,null,null,null,"Jun",1,5,1,1]
["Jul",0,{"$f":"AVERAGE(L13,L28,L43,L58,L73)","v":0.35},10.75,10,{"$f":"AVERAGE(N13,N28,N43,N58,N73)","v":0.35},0.65,null,null,null,"Jul",0.6,16.5,0.6,0.9,null,"Maximum: for 1/2 hourly and daily periods use the highest value across all operational combustion lines for the month"]
["Aug",0,{"$f":"AVERAGE(L14,L29,L44,L59,L74)","v":0.3},1.5,10,{"$f":"AVERAGE(N14,N29,N44,N59,N74)","v":0.3},0.6,null,null,null,"Aug",0.5,2.1,0.5,0.7]
["Sep",0,{"$f":"AVERAGE(L15,L30,L45,L60,L75)","v":0.35},1.75,10,{"$f":"AVERAGE(N15,N30,N45,N60,N75)","v":0.35},0.89999999999999991,null,null,null,"Sep",0.6,2.7,0.6,1.4]
["Oct",0,{"$f":"AVERAGE(L16,L31,L46,L61,L76)","v":0.39999999999999997},2.4,10,{"$f":"AVERAGE(N16,N31,N46,N61,N76)","v":0.39999999999999997},0.8,null,null,null,"Oct",0.7,2.8,0.7,1.2]
["Nov",0,{"$f":"AVERAGE(L17,L32,L47,L62,L77)","v":0.45},17.05,10,{"$f":"AVERAGE(N17,N32,N47,N62,N77)","v":0.45},1.0499999999999998,null,null,null,"Nov",0.8,28.1,0.8,1.4]
["Dec",0,{"$f":"AVERAGE(L18,L33,L48,L63,L78)","v":0.45},{"$f":"AVERAGE(M18,M33,M48,M63,M78)","v":4.5999999999999996},10,{"$f":"AVERAGE(N18,N33,N48,N63,N78)","v":0.45},1.1000000000000001,null,null,null,"Dec",0.8,6.9,0.8,2]
[null,null,null,null,null,null,null,null,null,null,"Annual",{"$f":"AVERAGE(L7:L18)","v":0.73333333333333328},{"$f":"MAX(M7:M18)","v":28.1},{"$f":"AVERAGE(N7:N18)","v":0.73333333333333328},{"$f":"MAX(O7:O18)","v":2}]
[]
[null,null,null,null,null,null,null,null,null,{"$f":"+A6","v":2020},"mg/Nm3","Monthly 1/2 hourly mean","Monthly 1/2 hourly maximum","Monthly daily mean","Monthly daily maximum"]
[null,null,null,null,null,null,null,null,null,"A2","Jan",0.1,2.7,0.1,0.2]
[null,null,null,null,null,null,null,null,null,null,"Feb",0.2,1.7,0.2,0.4]
[null,null,null,null,null,null,null,null,null,null,"Mar",0.2,11.4,0.2,0.4]
[null,null,null,null,null,null,null,null,null,null,"Apr",0,1,0,1]
[null,null,null,null,null,null,null,null,null,null,"May",0,1,0,0]
[null,null,null,null,null,null,null,null,null,null,"Jun",0,7,0,0]
[null,null,null,null,null,null,null,null,null,null,"Jul",0.1,5,0.1,0.4]
[null,null,null,null,null,null,null,null,null,null,"Aug",0.1,0.9,0.1,0.5]
[null,null,null,null,null,null,null,null,null,null,"Sep",0.1,0.8,0.1,0.4]
[null,null,null,null,null,null,null,null,null,null,"Oct",0.1,2,0.1,0.4]
[null,null,null,null,null,null,null,null,null,null,"Nov",0.1,6,0.1,0.7]
[null,null,null,null,null,null,null,null,null,null,"Dec",0.1,2.2999999999999998,0.1,0.2]
[null,null,null,null,null,null,null,null,null,null,"Annual",{"$f":"AVERAGE(L22:L33)","v":9.166666666666666E-2},{"$f":"MAX(M22:M33)","v":11.4},{"$f":"AVERAGE(N22:N33)","v":9.166666666666666E-2},{"$f":"MAX(O22:O33)","v":1}]
[]
[null,null,null,null,null,null,null,null,null,{"$f":"+A6","v":2020},"mg/Nm3","Monthly 1/2 hourly mean","Monthly 1/2 hourly maximum","Monthly daily mean","Monthly daily maximum"]
[null,null,null,null,null,null,null,null,null,"A3","Jan"]
[null,null,null,null,null,null,null,null,null,null,"Feb"]
[null,null,null,null,null,null,null,null,null,null,"Mar"]
[null,null,null,null,null,null,null,null,null,null,"Apr"]
[null,null,null,null,null,null,null,null,null,null,"May"]
[null,null,null,null,null,null,null,null,null,null,"Jun"]
[null,null,null,null,null,null,null,null,null,null,"Jul"]
[null,null,null,null,null,null,null,null,null,null,"Aug"]
[null,null,null,null,null,null,null,null,null,null,"Sep"]
[null,null,null,null,null,null,null,null,null,null,"Oct"]
[null,null,null,null,null,null,null,null,null,null,"Nov"]
["Comments :",null,null,null,null,null,null,null,null,null,"Dec"]
["An indicated ELV value of zero in the table above means that no ammonia limit is set in the permit.  ",null,null,null,null,null,null,null,null,null,"Annual",{"$f":"AVERAGE(L37:L48)","v":{"$error":"#DIV/0!"}},{"$f":"MAX(M37:M48)","v":0},{"$f":"AVERAGE(N37:N48)","v":{"$error":"#DIV/0!"}},{"$f":"MAX(O37:O48)","v":0}]
[]
[null,null,null,null,null,null,null,null,null,{"$f":"+A6","v":2020},"mg/Nm3","Monthly 1/2 hourly mean","Monthly 1/2 hourly maximum","Monthly daily mean","Monthly daily maximum"]
[null,null,null,null,null,null,null,null,null,"A4","Jan"]
[null,null,null,null,null,null,null,null,null,null,"Feb"]
[null,null,null,null,null,null,null,null,null,null,"Mar"]
[null,null,null,null,null,null,null,null,null,null,"Apr"]
[null,null,null,null,null,null,null,null,null,null,"May"]
[null,null,null,null,null,null,null,null,null,null,"Jun"]
[null,null,null,null,null,null,null,null,null,null,"Jul"]
[null,null,null,null,null,null,null,null,null,null,"Aug"]
[null,null,null,null,null,null,null,null,null,null,"Sep"]
[null,null,null,null,null,null,null,null,null,null,"Oct"]
[null,null,null,null,null,null,null,null,null,null,"Nov"]
[null,null,null,null,null,null,null,null,null,null,"Dec"]
[null,null,null,null,null,null,null,null,null,null,"Annual",{"$f":"AVERAGE(L52:L63)","v":{"$error":"#DIV/0!"}},{"$f":"MAX(M52:M63)","v":0},{"$f":"AVERAGE(N52:N63)","v":{"$error":"#DIV/0!"}},{"$f":"MAX(O52:O63)","v":0}]
[]
[null,null,null,null,null,null,null,null,null,{"$f":"+A6","v":2020},"mg/Nm3","Monthly 1/2 hourly mean","Monthly 1/2 hourly maximum","Monthly daily mean","Monthly daily maximum"]
[null,null,null,null,null,null,null,null,null,"A5","Jan"]
[null,null,null,null,null,null,null,null,null,null,"Feb"]
[null,null,null,null,null,null,null,null,null,null,"Mar"]
[null,null,null,null,null,null,null,null,null,null,"Apr"]
[null,null,null,null,null,null,null,null,null,null,"May"]
[null,null,null,null,null,null,null,null,null,null,"Jun"]
[null,null,null,null,null,null,null,null,null,null,"Jul"]
[null,null,null,null,null,null,null,null,null,null,"Aug"]
[null,null,null,null,null,null,null,null,null,null,"Sep"]
[null,null,null,null,null,null,null,null,null,null,"Oct"]
[null,null,null,null,null,null,null,null,null,null,"Nov"]
[null,null,null,null,null,null,null,null,null,null,"Dec"]
[null,null,null,null,null,null,null,null,null,null,"Annual",{"$f":"AVERAGE(L67:L78)","v":{"$error":"#DIV/0!"}},{"$f":"MAX(M67:M78)","v":0},{"$f":"AVERAGE(N67:N78)","v":{"$error":"#DIV/0!"}},{"$f":"MAX(O67:O78)","v":0}]